Workbook

Sheet Running Totals

Sheet Donation Averages

Sheet Income Source Analytics

Sheet Donations by Class
A41: Row Labels | B41: Count of donate_id | C41: Sum of donate_amount | D41: Average of donate_amount2
A42: 1948 | B42: 2 | C42: 100 | D42: 50
A43: 1949 | B43: 2 | C43: 150 | D43: 75
A44: 1951 | B44: 3 | C44: 225 | D44: 75
A45: 1955 | B45: 7 | C45: 545 | D45: 77.85714286
A46: 1956 | B46: 18 | C46: 335 | D46: 18.61111111
A47: 1957 | B47: 9 | C47: 909 | D47: 101
A48: 1958 | B48: 23 | C48: 1637.58 | D48: 71.19913043
A49: 1959 | B49: 12 | C49: 684 | D49: 57
A50: 1960 | B50: 3 | C50: 200 | D50: 66.66666667
A51: 1962 | B51: 1 | C51: 100 | D51: 100
A52: 1963 | B52: 15 | C52: 686.66 | D52: 45.77733333
A53: 1964 | B53: 77 | C53: 8713.64 | D53: 113.1641558
A54: 1965 | B54: 16 | C54: 1030 | D54: 64.375
A55: 1966 | B55: 50 | C55: 4553 | D55: 91.06
A56: 1967 | B56: 7 | C56: 1415 | D56: 202.1428571
A57: 1968 | B57: 30 | C57: 3908 | D57: 130.2666667
A58: 1969 | B58: 25 | C58: 1758.38 | D58: 70.3352
A59: 1970 | B59: 2 | C59: 235 | D59: 117.5
A60: 1971 | B60: 2 | C60: 120 | D60: 60
A61: 1972 | B61: 1 | C61: 100 | D61: 100
A62: 1975 | B62: 20 | C62: 1435 | D62: 71.75
A63: 1976 | B63: 1 | C63: 150 | D63: 150
A64: 1977 | B64: 15 | C64: 929.55 | D64: 61.97
A65: 1978 | B65: 42 | C65: 2891 | D65: 68.83333333
A66: 1979 | B66: 69 | C66: 3264.97 | D66: 47.3184058
A67: 1980 | B67: 9 | C67: 470 | D67: 52.22222222
A68: 1981 | B68: 7 | C68: 85 | D68: 12.14285714
A69: 1982 | B69: 1 | C69: 198.2 | D69: 198.2
A70: 1984 | B70: 1 | C70: 50 | D70: 50
A71: 1985 | B71: 7 | C71: 35 | D71: 5
A72: 1986 | B72: 7 | C72: 146 | D72: 20.85714286
A73: 1987 | B73: 7 | C73: 70 | D73: 10
A74: 1988 | B74: 1 | C74: 100 | D74: 100
A75: 1989 | B75: 16 | C75: 1329.45 | D75: 83.090625
A76: 1996 | B76: 1 | C76: 25 | D76: 25
A77: 1999 | B77: 1 | C77: 100 | D77: 100
A78: 2001 | B78: 1 | C78: 100 | D78: 100
A79: 2005 | B79: 3 | C79: 75 | D79: 25
A80: 2007 | B80: 9 | C80: 210 | D80: 23.33333333
A81: 2008 | B81: 1 | C81: 40 | D81: 40
A82: 2009 | B82: 6 | C82: 120.54 | D82: 20.09
A83: 2010 | B83: 1 | C83: 50 | D83: 50
A84: 2011 | B84: 1 | C84: 100 | D84: 100
A85: 2012 | B85: 3 | C85: 225 | D85: 75
A86: 2013 | B86: 2 | C86: 85 | D86: 42.5
A87: 2015 | B87: 1 | C87: 25 | D87: 25
A88: 2016 | B88: 4 | C88: 135 | D88: 33.75
A89: (blank) | B89: 7 | C89: 44.79 | D89: 6.398571429
A90: Grand Total | B90: 549 | C90: 39894.76 | D90: 72.668051

Sheet Fund Drive Budget History
A1: 8 | B1: Fall 2000 | C1: 68617
A2: 9 | B2: Spring 2001 | C2: 102827
A3: 10 | B3: Fall 2001 | C3: 95623
A4: 11 | B4: Spring 2002 | C4: 111701
A5: 12 | B5: Fall 2002 | C5: 106844
A6: 13 | B6: Spring 2003 | C6: 102871
A7: 14 | B7: Fall 2003 | C7: 98477
A8: 15 | B8: Spring 2004 | C8: 108900
A9: 16 | B9: Fall 2004 | C9: 113124
A10: 17 | B10: Spring 2005 | C10: 118619
A11: 18 | B11: Fall 2005 | C11: 111051
A12: 19 | B12: Spring 2006 | C12: 113413
A13: 20 | B13: Fall 2006 | C13: 95079
A14: 21 | B14: Spring 2007 | C14: 103994
A15: 22 | B15: Fall 2007 | C15: 116556
A16: 23 | B16: Spring 2008 | C16: 107504
A17: 24 | B17: Fall 2008 | C17: 108019
A18: 25 | B18: Spring 2009 | C18: 113444
A19: 26 | B19: Fall 2009 | C19: 109229
A20: 27 | B20: Spring 2010 | C20: 98094
A21: 28 | B21: Fall 2010 | C21: 96500
A22: 29 | B22: Spring 2011 | C22: 104010
A23: 30 | B23: Fall 2011 | C23: 98593
A24: 31 | B24: Spring 2012 | C24: 104884
A25: 32 | B25: Fall 2012 | C25: 117343
A26: 33 | B26: Spring 2013 | C26: 104622
A27: 34 | B27: Fall 2013 | C27: 97167
A28: 35 | B28: Spring 2014 | C28: 99462
A29: 36 | B29: Fall 2014 | C29: 98667
A30: 37 | B30: Spring 2015 | C30: 101357
A31: 38 | B31: Fall 2015 | C31: 99590
A32: 39 | B32: Spring 2016 | C32: 89448
A33: 40 | B33: Fall 2016 | C33: 95352
A34: 41 | B34: Spring 2017 | C34: 96226
A35: 42 | B35: Fall 2017 | C35: 92344
A36: 43 | B36: Spring 2018 | C36: 96226
A37: 44 | B37: Fall 2018 | C37: 74104
A38: 45 | B38: Spring 2019 | C38: 74493
A39: 46 | B39: Fall 2019 | C39: 75511.82
A40: 47 | B40: Spring 2020 | C40: 65854
A41: 48 | B41: Fall 2020 | C41: 45171.65
A42: 49 | B42: Spring 2021 | C42: 59014
A43: 50 | B43: Fall 2021 | C43: 52095
A44: 51 | B44: Spring 2022 | C44: 54096
A45: 52 | B45: Fall 2022 | C45: 51670
A46: 53 | B46: Spring 2023 | C46: 50252
A47: 54 | B47: Fall 2023 | C47: 48752

Sheet Tables
A1: FD55 | AP1: FD 54 | CE1: FD 53 | DT1: FD 52 | FI1: FD 51
A2: Day | B2: Date | C2: Goal | D2: Matching Grant # | E2: Matching Grant Amt | F2: Cash # | G2: Cash Amt | H2: Credit Card # | I2: Credit Card Amt | J2: PayPal # | K2: PayPal Amt | L2: Check # | M2: Check Amt | N2: Operating Budget | O2: Donations by Day | P2: Total Donations | Q2: Avg Overall Donation Amt | R2: Avg Donation/Day | S2: Average Donated Daily | T2: Daily % of Goal | U2: Daily % Matching $ | V2: Daily % Matching # | W2: Overall %Matching $ | X2: Overall % Matching # | Y2: Daily % Cash $ | Z2: Daily % Cash # | AA2: Overall % Cash $ | AB2: Overall % Cash # | AC2: Daily % CC $ | AD2: Daily % CC # | AE2: Overall % CC $ | AF2: Overall % CC # | AG2: Daily % PP $ | AH2: Daily % PP # | AI2: Overall % PP $ | AJ2: Overall % PP # | AK2: Daily % Chk $ | AL2: Daily % Chk # | AM2: Overall % Chk $ | AN2: Overall % Chk # | AP2: Day | AQ2: Date | AR2: Goal | AS2: Matching Grant # | AT2: Matching Grant Amt | AU2: Cash # | AV2: Cash Amt | AW2: Credit Card # | AX2: Credit Card Amt | AY2: PayPal # | AZ2: PayPal Amt | BA2: Check # | BB2: Check Amt | BC2: Operating Budget | BD2: Donations by Day | BE2: Total Donations | BF2: Avg Overall Donation Amt | BG2: Avg Donation/Day | BH2: Average Donated Daily | BI2: Daily % of Goal | BJ2: Daily % Matching $ | BK2: Daily % Matching # | BL2: Overall %Matching $ | BM2: Overall % Matching # | BN2: Daily % Cash $ | BO2: Daily % Cash # | BP2: Overall % Cash $ | BQ2: Overall % Cash # | BR2: Daily % CC $ | BS2: Daily % CC # | BT2: Overall % CC $ | BU2: Overall % CC # | BV2: Daily % PP $ | BW2: Daily % PP # | BX2: Overall % PP $ | BY2: Overall % PP # | BZ2: Daily % Chk $ | CA2: Daily % Chk # | CB2: Overall % Chk $ | CC2: Overall % Chk # | CE2: Day | CF2: Date | CG2: Goal | CH2: Matching Grant # | CI2: Matching Grant Amt | CJ2: Cash # | CK2: Cash Amt | CL2: Credit Card # | CM2: Credit Card Amt | CN2: PayPal # | CO2: PayPal Amt | CP2: Check # | CQ2: Check Amt | CR2: Operating Budget | CS2: Donations by Day | CT2: Total Donations | CU2: Avg Overall Donation Amt | CV2: Avg Donation/Day | CW2: Average Donated Daily | CX2: Daily % of Goal | CY2: Daily % Matching $ | CZ2: Daily % Matching # | DA2: Overall %Matching $ | DB2: Overall % Matching # | DC2: Daily % Cash $ | DD2: Daily % Cash # | DE2: Overall % Cash $ | DF2: Overall % Cash # | DG2: Daily % CC $ | DH2: Daily % CC # | DI2: Overall % CC $ | DJ2: Overall % CC # | DK2: Daily % PP $ | DL2: Daily % PP # | DM2: Overall % PP $ | DN2: Overall % PP # | DO2: Daily % Chk $ | DP2: Daily % Chk # | DQ2: Overall % Chk $ | DR2: Overall % Chk # | DT2: Day | DU2: Date | DV2: Goal | DW2: Matching Grant # | DX2: Matching Grant Amt | DY2: Cash # | DZ2: Cash Amt | EA2: Credit Card # | EB2: Credit Card Amt | EC2: PayPal # | ED2: PayPal Amt | EE2: Check # | EF2: Check Amt | EG2: Operating Budget | EH2: Donations by Day | EI2: Total Donations | EJ2: Avg Overall Donation Amt | EK2: Avg Donation/Day | EL2: Average Donated Daily | EM2: Daily % of Goal | EN2: Daily % Matching $ | EO2: Daily % Matching # | EP2: Overall %Matching $ | EQ2: Overall % Matching # | ER2: Daily % Cash $ | ES2: Daily % Cash # | ET2: Overall % Cash $ | EU2: Overall % Cash # | EV2: Daily % CC $ | EW2: Daily % CC # | EX2: Overall % CC $ | EY2: Overall % CC # | EZ2: Daily % PP $ | FA2: Daily % PP # | FB2: Overall % PP $ | FC2: Overall % PP # | FD2: Daily % Chk $ | FE2: Daily % Chk # | FF2: Overall % Chk $ | FG2: Overall % Chk # | FI2: Day | FJ2: Date | FK2: Goal | FL2: Matching Grant # | FM2: Matching Grant Amt | FN2: Cash # | FO2: Cash Amt | FP2: Credit Card # | FQ2: Credit Card Amt | FR2: PayPal # | FS2: PayPal Amt | FT2: Check # | FU2: Check Amt | FV2: Operating Budget | FW2: Donations by Day | FX2: Total Donations | FY2: Avg Overall Donation Amt | FZ2: Avg Donation/Day | GA2: Average Donated Daily | GB2: Daily % of Goal | GC2: Daily % Matching $ | GD2: Daily % Matching # | GE2: Overall %Matching $ | GF2: Overall % Matching # | GG2: Daily % Cash $ | GH2: Daily % Cash # | GI2: Overall % Cash $ | GJ2: Overall % Cash # | GK2: Daily % CC $ | GL2: Daily % CC # | GM2: Overall % CC $ | GN2: Overall % CC # | GO2: Daily % PP $ | GP2: Daily % PP # | GQ2: Overall % PP $ | GR2: Overall % PP # | GS2: Daily % Chk $ | GT2: Daily % Chk # | GU2: Overall % Chk $ | GV2: Overall % Chk #
A3: Pre-Fund Drive | C3: 39822 | D3: =COUNTIFS('Sanitized Raw Data'!$H:$H,"<"&B4,'Sanitized Raw Data'!$D:$D,"Matching Grant") -> 0 | E3: =SUMIFS('Sanitized Raw Data'!$C:$C,'Sanitized Raw Data'!$H:$H,"<"&B4,'Sanitized Raw Data'!$D:$D,"Matching Grant") -> 0 | F3: =COUNTIFS('Sanitized Raw Data'!$H:$H,"<"&B4,'Sanitized Raw Data'!$D:$D,"Cash") -> 0 | G3: =SUMIFS('Sanitized Raw Data'!$C:$C,'Sanitized Raw Data'!$H:$H,"<"&B4,'Sanitized Raw Data'!$D:$D,"Cash") -> 0 | H3: =COUNTIFS('Sanitized Raw Data'!$H:$H,"<"&B4,'Sanitized Raw Data'!$D:$D,"CC") -> 0 | I3: =SUMIFS('Sanitized Raw Data'!$C:$C,'Sanitized Raw Data'!$H:$H,"<"&B4,'Sanitized Raw Data'!$D:$D,"CC") -> 0 | J3: =COUNTIFS('Sanitized Raw Data'!$H:$H,"<"&B4,'Sanitized Raw Data'!$D:$D,"PayPal") -> 78 | K3: =SUMIFS('Sanitized Raw Data'!$C:$C,'Sanitized Raw Data'!$H:$H,"<"&B4,'Sanitized Raw Data'!$D:$D,"PayPal") -> 1229.54 | L3: =COUNTIFS('Sanitized Raw Data'!$H:$H,"<"&B4,'Sanitized Raw Data'!$D:$D,"Personal Check")+COUNTIFS('Sanitized Raw Data'!$H:$H,"<"&B4,'Sanitized Raw Data'!$D:$D,"ACH Grant Deposit") -> 41 | M3: =SUMIFS('Sanitized Raw Data'!$C:$C,'Sanitized Raw Data'!$H:$H,"<"&B4,'Sanitized Raw Data'!$D:$D,"Personal Check")+SUMIFS('Sanitized Raw Data'!$C:$C,'Sanitized Raw Data'!$H:$H,"<"&B4,'Sanitized Raw Data'!$D:$D,"ACH Grant Deposit") -> 5576.58 | N3: =SUM(G3,M3,K3,I3,E3) -> 6806.12 | O3: =SUM(F3,H3,J3,L3) -> 119 | P3: =SUM(F3,L3,J3,H3,D3) -> 119 | Q3: =N3/P3 -> 57.19428571 | R3: =(SUM(G3,M3,K3,I3,E3))/(SUM(F3,H3,J3,L3,D3)) -> 57.19428571 | T3: =(N3/C$3) -> 0.1709135654 | U3: =E3/N3 -> 0 | V3: =D3/O3 -> 0 | W3: =E3/N3 -> 0 | X3: =D3/O3 -> 0 | Y3: =G3/N3 -> 0 | Z3: =F3/O3 -> 0 | AA3: =B3/J3 -> 0 | AB3: =F3/O3 -> 0 | AC3: =I3/N3 -> 0 | AD3: =H3/O3 -> 0 | AE3: =H3/N3 -> 0 | AF3: =H3/P3 -> 0 | AG3: =K3/N3 -> 0.180652119 | AH3: =J3/O3 -> 0.6554621849 | AI3: =K3/N3 -> 0.180652119 | AJ3: =J3/P3 -> 0.6554621849 | AK3: =M3/N3 -> 0.819347881 | AL3: =L3/O3 -> 0.3445378151 | AM3: =M3/N3 -> 0.819347881 | AN3: =L3/P3 -> 0.3445378151 | AP3: Pre-Fund Drive | AR3: 48752 | AS3: 1 | AT3: 50 | AU3: 0 | AV3: 0 | AW3: 1 | AX3: 19.63 | AY3: 96 | AZ3: 2408.13 | BA3: 36 | BB3: 3986.01 | BC3: 6463.77 | BD3: 133 | BE3: 134 | BF3: 48.23708955 | BG3: 48.23708955 | BI3: 0.1325847145 | BJ3: 0.007735423754 | BK3: 0.007518796992 | BL3: 0.007735423754 | BM3: 0.007518796992 | BN3: 0 | BO3: 0 | BP3: 0 | BQ3: 0 | BR3: 0.003036927366 | BS3: 0.007518796992 | BT3: 0.0001547084751 | BU3: 0.007462686567 | BV3: 0.3725581201 | BW3: 0.7218045113 | BX3: 0.3725581201 | BY3: 0.7164179104 | BZ3: 0.6166695288 | CA3: 0.2706766917 | CB3: 0.6166695288 | CC3: 0.2686567164 | CE3: Pre-Fund Drive | CG3: 50252 | CH3: 3 | CI3: 250 | CJ3: 0 | CK3: 0 | CL3: 0 | CM3: 0 | CN3: 67 | CO3: 1235.33 | CP3: 33 | CQ3: 2932.45 | CR3: 4417.78 | CS3: 100 | CT3: 103 | CU3: 42.89106796 | CV3: 42.89106796 | CX3: 0.08791252089 | CY3: 0.05658950876 | CZ3: 0.03 | DA3: 0.05658950876 | DB3: 0.03 | DC3: 0 | DD3: 0 | DE3: 0 | DF3: 0 | DG3: 0 | DH3: 0 | DI3: 0 | DJ3: 0 | DK3: 0.2796268714 | DL3: 0.67 | DM3: 0.2796268714 | DN3: 0.6504854369 | DO3: 0.6637836198 | DP3: 0.33 | DQ3: 0.6637836198 | DR3: 0.3203883495 | DT3: Pre-Fund Drive | DV3: 51670 | DW3: 4 | DX3: 255.69 | DY3: 0 | DZ3: 0 | EA3: 0 | EB3: 0 | EC3: 75 | ED3: 1575.54 | EE3: 43 | EF3: 4064.27 | EG3: 5895.5 | EH3: 118 | EI3: 122 | EJ3: 48.32377049 | EK3: 48.32377049 | EM3: 0.1140990904 | EN3: 0.04337036723 | EO3: 0.03389830508 | EP3: 0.04337036723 | EQ3: 0.03389830508 | ER3: 0 | ES3: 0 | ET3: 0 | EU3: 0 | EV3: 0 | EW3: 0 | EX3: 0 | EY3: 0 | EZ3: 0.2672445085 | FA3: 0.6355932203 | FB3: 0.2672445085 | FC3: 0.6147540984 | FD3: 0.6893851242 | FE3: 0.3644067797 | FF3: 0.6893851242 | FG3: 0.3524590164 | FI3: Pre-Fund Drive | FK3: 54096 | FL3: 16 | FM3: 246.78 | FN3: 0 | FO3: 0 | FP3: 39 | FQ3: 3287.67 | FR3: 130 | FS3: 4258.37 | FT3: 78 | FU3: 6382.97 | FV3: 14175.79 | FW3: 247 | FX3: 263 | FY3: 53.90034221 | FZ3: 53.90034221 | GB3: 0.2620487652 | GC3: 0.0174085536 | GD3: 0.06477732794 | GE3: 0.0174085536 | GF3: 0.06477732794 | GG3: 0 | GH3: 0 | GI3: 0 | GJ3: 0 | GK3: 0.2319214661 | GL3: 0.1578947368 | GM3: 0.002751169423 | GN3: 0.1482889734 | GO3: 0.3003973676 | GP3: 0.5263157895 | GQ3: 0.3003973676 | GR3: 0.4942965779 | GS3: 0.4502726127 | GT3: 0.3157894737 | GU3: 0.4502726127 | GV3: 0.2965779468
A4: Day 1 | B4: 2024-04-16 | C4: 39822 | D4: =COUNTIFS('Sanitized Raw Data'!$H:$H,">="&$B4,'Sanitized Raw Data'!$H:$H,"<"&$B5,'Sanitized Raw Data'!$D:$D,"Matching Grant") -> 0 | E4: =SUMIFS('Sanitized Raw Data'!$C:$C,'Sanitized Raw Data'!$H:$H,">="&$B4,'Sanitized Raw Data'!$H:$H,"<"&$B5,'Sanitized Raw Data'!$D:$D,"Matching Grant") -> 0 | F4: =COUNTIFS('Sanitized Raw Data'!$H:$H,">="&$B4,'Sanitized Raw Data'!$H:$H,"<"&$B5,'Sanitized Raw Data'!$D:$D,"Cash") -> 0 | G4: =SUMIFS('Sanitized Raw Data'!$C:$C,'Sanitized Raw Data'!$H:$H,">="&$B4,'Sanitized Raw Data'!$H:$H,"<"&$B5,'Sanitized Raw Data'!$D:$D,"Cash") -> 0 | H4: =COUNTIFS('Sanitized Raw Data'!$H:$H,">="&$B4,'Sanitized Raw Data'!$H:$H,"<"&$B5,'Sanitized Raw Data'!$D:$D,"CC") -> 174 | I4: =SUMIFS('Sanitized Raw Data'!$C:$C,'Sanitized Raw Data'!$H:$H,">="&$B4,'Sanitized Raw Data'!$H:$H,"<"&$B5,'Sanitized Raw Data'!$D:$D,"CC") -> 13785.69 | J4: =COUNTIFS('Sanitized Raw Data'!$H:$H,">="&$B4,'Sanitized Raw Data'!$H:$H,"<"&$B5,'Sanitized Raw Data'!$D:$D,"PayPal") -> 22 | K4: =SUMIFS('Sanitized Raw Data'!$C:$C,'Sanitized Raw Data'!$H:$H,">="&$B4,'Sanitized Raw Data'!$H:$H,"<"&$B5,'Sanitized Raw Data'!$D:$D,"PayPal") -> 1416 | L4: =COUNTIFS('Sanitized Raw Data'!$H:$H,">="&$B4,'Sanitized Raw Data'!$H:$H,"<"&$B5,'Sanitized Raw Data'!$D:$D,"Personal Check")+COUNTIFS('Sanitized Raw Data'!$H:$H,">="&$B4,'Sanitized Raw Data'!$H:$H,"<"&$B5,'Sanitized Raw Data'!$D:$D,"ACH Grant Deposit") -> 8 | M4: =SUMIFS('Sanitized Raw Data'!$C:$C,'Sanitized Raw Data'!$H:$H,">="&$B4,'Sanitized Raw Data'!$H:$H,"<"&$B5,'Sanitized Raw Data'!$D:$D,"Personal Check")+SUMIFS('Sanitized Raw Data'!$C:$C,'Sanitized Raw Data'!$H:$H,">="&$B4,'Sanitized Raw Data'!$H:$H,"<"&$B5,'Sanitized Raw Data'!$D:$D,"ACH Grant Deposit") -> 864.63 | N4: =SUM(G4,M4,K4,I4,N3,E4) -> 22872.44 | O4: =SUM(F4,H4,J4,L4,D4) -> 204 | P4: =SUM(F4,L4,J4,H4,P3,D4) -> 323 | Q4: =N4/P4 -> 70.81250774 | R4: 78.75647059 | S4: =N4/Sheet11!$A1 -> 22872.44 | T4: =(N4-N3)/C$3 -> 0.4034533675 | U4: =E4/(N4-N3) -> 0 | V4: 0 | W4: =SUM(E$3:E4)/N4 -> 0 | X4: =SUM(D$3:D4)/O4 -> 0 | Y4: =G4/(N4-N3) -> 0 | Z4: 0 | AA4: =SUM(G$3:G4)/N4 -> 0 | AB4: =SUM(F$3:F4)/O4 -> 0 | AC4: =I4/(N4-N3) -> 0.8580490118 | AD4: =H4/O4 -> 0.8529411765 | AE4: =SUM(I$3:I4)/N4 -> 0.6027205668 | AF4: =SUM(H$3:H4)/P4 -> 0.5386996904 | AG4: =K4/(N4-N3) -> 0.08813468174 | AH4: =J4/O4 -> 0.1078431373 | AI4: =SUM(K$3:K4)/N4 -> 0.1156649662 | AJ4: =SUM(J$3:J4)/P4 -> 0.3095975232 | AK4: =M4/(N4-N3) -> 0.05381630641 | AL4: =L4/O4 -> 0.03921568627 | AM4: =SUM(M$3:M4)/N4 -> 0.281614467 | AN4: =SUM(L$3:L4)/P4 -> 0.1517027864 | AP4: Day 1 | AQ4: 2023-10-02 | AR4: 48752 | AS4: 0 | AT4: 0 | AU4: 0 | AV4: 0 | AW4: 40 | AX4: 3194.78 | AY4: 10 | AZ4: 559.47 | BA4: 3 | BB4: 639.79 | BC4: 10857.81 | BD4: 53 | BE4: 187 | BF4: 58.06315508 | BG4: 82.90641509 | BH4: 10857.81 | BI4: 0.09013045619 | BJ4: 0 | BK4: 0 | BL4: 0.004604980194 | BM4: 0.01886792453 | BN4: 0 | BO4: 0 | BP4: 0 | BQ4: 0 | BR4: 0.7270712146 | BS4: 0.7547169811 | BT4: 0.2960458877 | BU4: 0.2192513369 | BV4: 0.1273247399 | BW4: 0.1886792453 | BX4: 0.2733147845 | BY4: 0.5668449198 | BZ4: 0.1456040455 | CA4: 0.05660377358 | CB4: 0.4260343476 | CC4: 0.2085561497 | CE4: Day 1 | CF4: 2023-04-11 | CG4: 50252 | CH4: 0 | CI4: 0 | CJ4: 0 | CK4: 0 | CL4: 17 | CM4: 1673.52 | CN4: 4 | CO4: 234 | CP4: 1 | CQ4: 50 | CR4: 6375.3 | CS4: 22 | CT4: 125 | CU4: 51.0024 | CV4: 88.97818182 | CW4: 6375.3 | CX4: 0.03895407148 | CY4: 0 | CZ4: 0 | DA4: 0.03921384092 | DB4: 0.1363636364 | DC4: 0 | DD4: 0 | DE4: 0 | DF4: 0 | DG4: 0.8549184683 | DH4: 0.7727272727 | DI4: 0.2625005882 | DJ4: 0.136 | DK4: 0.1195390085 | DL4: 0.1818181818 | DM4: 0.2304722915 | DN4: 0.568 | DO4: 0.02554252319 | DP4: 0.04545454545 | DQ4: 0.4678132794 | DR4: 0.272 | DT4: Day 1 | DU4: 2022-10-03 | DV4: 51670 | DW4: 0 | DX4: 0 | DY4: 0 | DZ4: 0 | EA4: 104 | EB4: 9077.6 | EC4: 25 | ED4: 1332.68 | EE4: 8 | EF4: 1032.79 | EG4: 17338.57 | EH4: 137 | EI4: 259 | EJ4: 66.94428571 | EK4: 83.52605839 | EL4: 17338.57 | EM4: 0.2214644862 | EN4: 0 | EO4: 0 | EP4: 0.01474689089 | EQ4: 0.02919708029 | ER4: 0 | ES4: 0 | ET4: 0 | EU4: 0 | EV4: 0.7932836206 | EW4: 0.7591240876 | EX4: 0.5235495199 | EY4: 0.4015444015 | EZ4: 0.1164617537 | FA4: 0.1824817518 | FB4: 0.1677312489 | FC4: 0.3861003861 | FD4: 0.09025462573 | FE4: 0.05839416058 | FF4: 0.2939723403 | FG4: 0.1969111969 | FI4: Day 1 | FJ4: 2022-04-06 | FK4: 54096 | FL4: 0 | FM4: 0 | FN4: 0 | FO4: 0 | FP4: 125 | FQ4: 8823.51 | FR4: 28 | FS4: 2852.25 | FT4: 8 | FU4: 775.79 | FV4: 26627.34 | FW4: 161 | FX4: 424 | FY4: 62.80033019 | FZ4: 77.33881988 | GA4: 26627.34 | GB4: 0.2301750592 | GC4: 0 | GD4: 0 | GE4: 0.009267917862 | GF4: 0.09937888199 | GG4: 0 | GH4: 0 | GI4: 0 | GJ4: 0 | GK4: 0.70862744 | GL4: 0.7763975155 | GM4: 0.4548400253 | GN4: 0.3867924528 | GO4: 0.2290678671 | GP4: 0.1739130435 | GQ4: 0.2670420703 | GR4: 0.3726415094 | GS4: 0.06230469299 | GT4: 0.04968944099 | GU4: 0.2688499865 | GV4: 0.2028301887
A5: Day 2 | B5: 2024-04-17 | C5: 39822 | D5: =COUNTIFS('Sanitized Raw Data'!$H:$H,">="&$B5,'Sanitized Raw Data'!$H:$H,"<"&$B6,'Sanitized Raw Data'!$D:$D,"Matching Grant") -> 0 | E5: =SUMIFS('Sanitized Raw Data'!$C:$C,'Sanitized Raw Data'!$H:$H,">="&$B5,'Sanitized Raw Data'!$H:$H,"<"&$B6,'Sanitized Raw Data'!$D:$D,"Matching Grant") -> 0 | F5: =COUNTIFS('Sanitized Raw Data'!$H:$H,">="&$B5,'Sanitized Raw Data'!$H:$H,"<"&$B6,'Sanitized Raw Data'!$D:$D,"Cash") -> 0 | G5: =SUMIFS('Sanitized Raw Data'!$C:$C,'Sanitized Raw Data'!$H:$H,">="&$B5,'Sanitized Raw Data'!$H:$H,"<"&$B6,'Sanitized Raw Data'!$D:$D,"Cash") -> 0 | H5: =COUNTIFS('Sanitized Raw Data'!$H:$H,">="&$B5,'Sanitized Raw Data'!$H:$H,"<"&$B6,'Sanitized Raw Data'!$D:$D,"CC") -> 66 | I5: =SUMIFS('Sanitized Raw Data'!$C:$C,'Sanitized Raw Data'!$H:$H,">="&$B5,'Sanitized Raw Data'!$H:$H,"<"&$B6,'Sanitized Raw Data'!$D:$D,"CC") -> 4377.31 | J5: =COUNTIFS('Sanitized Raw Data'!$H:$H,">="&$B5,'Sanitized Raw Data'!$H:$H,"<"&$B6,'Sanitized Raw Data'!$D:$D,"PayPal") -> 5 | K5: =SUMIFS('Sanitized Raw Data'!$C:$C,'Sanitized Raw Data'!$H:$H,">="&$B5,'Sanitized Raw Data'!$H:$H,"<"&$B6,'Sanitized Raw Data'!$D:$D,"PayPal") -> 234 | L5: =COUNTIFS('Sanitized Raw Data'!$H:$H,">="&$B5,'Sanitized Raw Data'!$H:$H,"<"&$B6,'Sanitized Raw Data'!$D:$D,"Personal Check")+COUNTIFS('Sanitized Raw Data'!$H:$H,">="&$B5,'Sanitized Raw Data'!$H:$H,"<"&$B6,'Sanitized Raw Data'!$D:$D,"ACH Grant Deposit") -> 3 | M5: =SUMIFS('Sanitized Raw Data'!$C:$C,'Sanitized Raw Data'!$H:$H,">="&$B5,'Sanitized Raw Data'!$H:$H,"<"&$B6,'Sanitized Raw Data'!$D:$D,"Personal Check")+SUMIFS('Sanitized Raw Data'!$C:$C,'Sanitized Raw Data'!$H:$H,">="&$B5,'Sanitized Raw Data'!$H:$H,"<"&$B6,'Sanitized Raw Data'!$D:$D,"ACH Grant Deposit") -> 250 | N5: =SUM(G5,M5,K5,I5,N4,E5) -> 27733.75 | O5: =SUM(F5,H5,J5,L5,D5) -> 74 | P5: =SUM(F5,L5,J5,H5,P4,D5) -> 397 | Q5: =N5/P5 -> 69.85831234 | R5: =(SUM(G5,M5,K5,I5,E5))/(SUM(F5,H5,J5,L5,D5)) -> 65.69337838 | S5: =N5/Sheet11!$A2 -> 13866.875 | T5: =(N5-N4)/C$3 -> 0.1220759881 | U5: =E5/(N5-N4) -> 0 | V5: =D5/O5 -> 0 | W5: =SUM(E$3:E5)/N5 -> 0 | X5: =SUM(D$3:D5)/O5 -> 0 | Y5: =G5/(N5-N4) -> 0 | Z5: =F5/O5 -> 0 | AA5: =SUM(G$3:G5)/N5 -> 0 | AB5: =SUM(F$3:F5)/O5 -> 0 | AC5: =I5/(N5-N4) -> 0.9004383592 | AD5: =H5/O5 -> 0.8918918919 | AE5: =SUM(I$3:I5)/N5 -> 0.6549060261 | AF5: =SUM(H$3:H5)/P5 -> 0.604534005 | AG5: =K5/(N5-N4) -> 0.04813517344 | AH5: =J5/O5 -> 0.06756756757 | AI5: =SUM(K$3:K5)/N5 -> 0.1038280074 | AJ5: =SUM(J$3:J5)/P5 -> 0.2644836272 | AK5: =M5/(N5-N4) -> 0.05142646735 | AL5: =L5/O5 -> 0.04054054054 | AM5: =SUM(M$3:M5)/N5 -> 0.2412659666 | AN5: =SUM(L$3:L5)/P5 -> 0.1309823678 | AP5: Day 2 | AQ5: 2023-10-03 | AR5: 48752 | AS5: 0 | AT5: 0 | AU5: 0 | AV5: 0 | AW5: 69 | AX5: 5796.7 | AY5: 20 | AZ5: 1155 | BA5: 4 | BB5: 296 | BC5: 18105.51 | BD5: 93 | BE5: 280 | BF5: 64.66253571 | BG5: 77.93225806 | BH5: 9052.755 | BI5: 0.1486646702 | BJ5: 0 | BK5: 0 | BL5: 0.002761590256 | BM5: 0.01075268817 | BN5: 0 | BO5: 0 | BP5: 0 | BQ5: 0 | BR5: 0.7997985568 | BS5: 0.7419354839 | BT5: 0.4976998715 | BU5: 0.3928571429 | BV5: 0.1593609007 | BW5: 0.2150537634 | BX5: 0.2276986398 | BY5: 0.45 | BZ5: 0.04084054252 | CA5: 0.04301075269 | CB5: 0.2718398985 | CC5: 0.1535714286 | CE5: Day 2 | CF5: 2023-04-12 | CG5: 50252 | CH5: 0 | CI5: 0 | CJ5: 0 | CK5: 0 | CL5: 153 | CM5: 11667.58 | CN5: 38 | CO5: 1536 | CP5: 13 | CQ5: 990 | CR5: 20568.88 | CS5: 204 | CT5: 329 | CU5: 62.5193921 | CV5: 69.57637255 | CW5: 10284.44 | CX5: 0.2824480618 | CY5: 0 | CZ5: 0 | DA5: 0.01215428356 | DB5: 0.01470588235 | DC5: 0 | DD5: 0 | DE5: 0 | DF5: 0 | DG5: 0.8220322146 | DH5: 0.75 | DI5: 0.6486060495 | DJ5: 0.5167173252 | DK5: 0.1082179408 | DL5: 0.1862745098 | DM5: 0.146110532 | DN5: 0.3313069909 | DO5: 0.06974984465 | DP5: 0.0637254902 | DQ5: 0.1931291349 | DR5: 0.1428571429 | DT5: Day 2 | DU5: 2022-10-04 | DV5: 51670 | DW5: 0 | DX5: 0 | DY5: 0 | DZ5: 0 | EA5: 38 | EB5: 2696.56 | EC5: 9 | ED5: 483 | EE5: 12 | EF5: 1136.97 | EG5: 21655.1 | EH5: 59 | EI5: 318 | EJ5: 68.09779874 | EK5: 73.16152542 | EL5: 10827.55 | EM5: 0.08354035224 | EN5: 0 | EO5: 0 | EP5: 0.01180738025 | EQ5: 0.06779661017 | ER5: 0 | ES5: 0 | ET5: 0 | EU5: 0 | EV5: 0.6247054926 | EW5: 0.6440677966 | EX5: 0.5437130283 | EY5: 0.4465408805 | EZ5: 0.1118954345 | FA5: 0.1525423729 | FB5: 0.1566014472 | FC5: 0.3427672956 | FD5: 0.2633990729 | FE5: 0.2033898305 | FF5: 0.2878781442 | FG5: 0.1981132075 | FI5: Day 2 | FJ5: 2022-04-07 | FK5: 54096 | FL5: 0 | FM5: 0 | FN5: 0 | FO5: 0 | FP5: 68 | FQ5: 4186.41 | FR5: 11 | FS5: 931.14 | FT5: 5 | FU5: 210 | FV5: 31954.89 | FW5: 84 | FX5: 508 | FY5: 62.90332677 | FZ5: 63.42321429 | GA5: 15977.445 | GB5: 0.098483252 | GC5: 0 | GD5: 0 | GE5: 0.007722761681 | GF5: 0.1904761905 | GG5: 0 | GH5: 0 | GI5: 0 | GJ5: 0 | GK5: 0.7858039812 | GL5: 0.8095238095 | GM5: 0.5100186544 | GN5: 0.4566929134 | GO5: 0.1747782752 | GP5: 0.130952381 | GQ5: 0.2516597616 | GR5: 0.3326771654 | GS5: 0.03941774362 | GT5: 0.05952380952 | GU5: 0.2305988223 | GV5: 0.1791338583
A6: Day 3 | B6: 2024-04-18 | C6: 39822 | D6: =COUNTIFS('Sanitized Raw Data'!$H:$H,">="&$B6,'Sanitized Raw Data'!$H:$H,"<"&$B7,'Sanitized Raw Data'!$D:$D,"Matching Grant") -> 0 | E6: =SUMIFS('Sanitized Raw Data'!$C:$C,'Sanitized Raw Data'!$H:$H,">="&$B6,'Sanitized Raw Data'!$H:$H,"<"&$B7,'Sanitized Raw Data'!$D:$D,"Matching Grant") -> 0 | F6: =COUNTIFS('Sanitized Raw Data'!$H:$H,">="&$B6,'Sanitized Raw Data'!$H:$H,"<"&$B7,'Sanitized Raw Data'!$D:$D,"Cash") -> 0 | G6: =SUMIFS('Sanitized Raw Data'!$C:$C,'Sanitized Raw Data'!$H:$H,">="&$B6,'Sanitized Raw Data'!$H:$H,"<"&$B7,'Sanitized Raw Data'!$D:$D,"Cash") -> 0 | H6: =COUNTIFS('Sanitized Raw Data'!$H:$H,">="&$B6,'Sanitized Raw Data'!$H:$H,"<"&$B7,'Sanitized Raw Data'!$D:$D,"CC") -> 36 | I6: =SUMIFS('Sanitized Raw Data'!$C:$C,'Sanitized Raw Data'!$H:$H,">="&$B6,'Sanitized Raw Data'!$H:$H,"<"&$B7,'Sanitized Raw Data'!$D:$D,"CC") -> 2458.58 | J6: =COUNTIFS('Sanitized Raw Data'!$H:$H,">="&$B6,'Sanitized Raw Data'!$H:$H,"<"&$B7,'Sanitized Raw Data'!$D:$D,"PayPal") -> 1 | K6: =SUMIFS('Sanitized Raw Data'!$C:$C,'Sanitized Raw Data'!$H:$H,">="&$B6,'Sanitized Raw Data'!$H:$H,"<"&$B7,'Sanitized Raw Data'!$D:$D,"PayPal") -> 19.79 | L6: =COUNTIFS('Sanitized Raw Data'!$H:$H,">="&$B6,'Sanitized Raw Data'!$H:$H,"<"&$B7,'Sanitized Raw Data'!$D:$D,"Personal Check")+COUNTIFS('Sanitized Raw Data'!$H:$H,">="&$B6,'Sanitized Raw Data'!$H:$H,"<"&$B7,'Sanitized Raw Data'!$D:$D,"ACH Grant Deposit") -> 2 | M6: =SUMIFS('Sanitized Raw Data'!$C:$C,'Sanitized Raw Data'!$H:$H,">="&$B6,'Sanitized Raw Data'!$H:$H,"<"&$B7,'Sanitized Raw Data'!$D:$D,"Personal Check")+SUMIFS('Sanitized Raw Data'!$C:$C,'Sanitized Raw Data'!$H:$H,">="&$B6,'Sanitized Raw Data'!$H:$H,"<"&$B7,'Sanitized Raw Data'!$D:$D,"ACH Grant Deposit") -> 94.79 | N6: =SUM(G6,M6,K6,I6,N5,E6) -> 30306.91 | O6: =SUM(F6,H6,J6,L6,D6) -> 39 | P6: =SUM(F6,L6,J6,H6,P5,D6) -> 436 | Q6: =N6/P6 -> 69.51126147 | R6: =(SUM(G6,M6,K6,I6,E6))/(SUM(F6,H6,J6,L6,D6)) -> 65.97846154 | S6: =N6/Sheet11!$A3 -> 10102.30333 | T6: =(N6-N5)/C$3 -> 0.06461654362 | U6: =E6/(N6-N5) -> 0 | V6: =D6/O6 -> 0 | W6: =SUM(E$3:E6)/N6 -> 0 | X6: =SUM(D$3:D6)/O6 -> 0 | Y6: =G6/(N6-N5) -> 0 | Z6: =F6/O6 -> 0 | AA6: =SUM(G$3:G6)/N6 -> 0 | AB6: =SUM(F$3:F6)/O6 -> 0 | AC6: =I6/(N6-N5) -> 0.9554710939 | AD6: =H6/O6 -> 0.9230769231 | AE6: =SUM(I$3:I6)/N6 -> 0.6804250252 | AF6: =SUM(H$3:H6)/P6 -> 0.6330275229 | AG6: =K6/(N6-N5) -> 0.00769093255 | AH6: =J6/O6 -> 0.02564102564 | AI6: =SUM(K$3:K6)/N6 -> 0.09566564193 | AJ6: =SUM(J$3:J6)/P6 -> 0.2431192661 | AK6: =M6/(N6-N5) -> 0.03683797354 | AL6: =L6/O6 -> 0.05128205128 | AM6: =SUM(M$3:M6)/N6 -> 0.2239093329 | AN6: =SUM(L$3:L6)/P6 -> 0.123853211 | AP6: Day 3 | AQ6: 2023-10-04 | AR6: 48752 | AS6: 0 | AT6: 0 | AU6: 0 | AV6: 0 | AW6: 23 | AX6: 1980.77 | AY6: 6 | AZ6: 283 | BA6: 4 | BB6: 185 | BC6: 20554.28 | BD6: 33 | BE6: 313 | BF6: 65.6686262 | BG6: 74.20515152 | BH6: 6851.426667 | BI6: 0.05022911881 | BJ6: 0 | BK6: 0 | BL6: 0.002432583384 | BM6: 0.0303030303 | BN6: 0 | BO6: 0 | BP6: 0 | BQ6: 0 | BR6: 0.8088836436 | BS6: 0.696969697 | BT6: 0.534773293 | BU6: 0.4249201278 | BV6: 0.115568224 | BW6: 0.1818181818 | BX6: 0.2143397871 | BY6: 0.4217252396 | BZ6: 0.07554813233 | CA6: 0.1212121212 | CB6: 0.2484543365 | CC6: 0.1501597444 | CE6: Day 3 | CF6: 2023-04-13 | CG6: 50252 | CH6: 0 | CI6: 0 | CJ6: 0 | CK6: 0 | CL6: 26 | CM6: 1638.29 | CN6: 8 | CO6: 459.79 | CP6: 9 | CQ6: 1310 | CR6: 23976.96 | CS6: 43 | CT6: 372 | CU6: 64.45419355 | CV6: 79.25767442 | CW6: 7992.32 | CX6: 0.06781978827 | CY6: 0 | CZ6: 0 | DA6: 0.01042667628 | DB6: 0.06976744186 | DC6: 0 | DD6: 0 | DE6: 0 | DF6: 0 | DG6: 0.4807076125 | DH6: 0.6046511628 | DI6: 0.6247410014 | DJ6: 0.5268817204 | DK6: 0.1349117392 | DL6: 0.1860465116 | DM6: 0.144518738 | DN6: 0.314516129 | DO6: 0.3843806483 | DP6: 0.2093023256 | DQ6: 0.2203135844 | DR6: 0.1505376344 | DT6: Day 3 | DU6: 2022-10-05 | DV6: 51670 | DW6: 0 | DX6: 0 | DY6: 0 | DZ6: 0 | EA6: 21 | EB6: 1891.41 | EC6: 2 | ED6: 50 | EE6: 7 | EF6: 394 | EG6: 23990.51 | EH6: 30 | EI6: 348 | EJ6: 68.93824713 | EK6: 77.847 | EL6: 7996.836667 | EM6: 0.04519856783 | EN6: 0 | EO6: 0 | EP6: 0.01065796434 | EQ6: 0.1333333333 | ER6: 0 | ES6: 0 | ET6: 0 | EU6: 0 | EV6: 0.8098834894 | EW6: 0.7 | EX6: 0.5696239888 | EY6: 0.4683908046 | EZ6: 0.02140951696 | FA6: 0.06666666667 | FB6: 0.1434408856 | FC6: 0.3189655172 | FD6: 0.1687069936 | FE6: 0.2333333333 | FF6: 0.2762771613 | FG6: 0.2011494253 | FI6: Day 3 | FJ6: 2022-04-08 | FK6: 54096 | FL6: 0 | FM6: 0 | FN6: 0 | FO6: 0 | FP6: 30 | FQ6: 1837.95 | FR6: 2 | FS6: 75 | FT6: 7 | FU6: 555 | FV6: 34422.84 | FW6: 39 | FX6: 547 | FY6: 62.93023766 | FZ6: 63.28076923 | GA6: 11474.28 | GB6: 0.04562167258 | GC6: 0 | GD6: 0 | GE6: 0.007169077275 | GF6: 0.4102564103 | GG6: 0 | GH6: 0 | GI6: 0 | GJ6: 0 | GK6: 0.7447274053 | GL6: 0.7692307692 | GM6: 0.5268461289 | GN6: 0.478976234 | GO6: 0.0303895946 | GP6: 0.05128205128 | GQ6: 0.2357957682 | GR6: 0.3126142596 | GS6: 0.2248830001 | GT6: 0.1794871795 | GU6: 0.2301890257 | GV6: 0.1791590494
A7: Day 4 | B7: 2024-04-19 | C7: 39822 | D7: =COUNTIFS('Sanitized Raw Data'!$H:$H,">="&$B7,'Sanitized Raw Data'!$H:$H,"<"&$B8,'Sanitized Raw Data'!$D:$D,"Matching Grant") -> 0 | E7: =SUMIFS('Sanitized Raw Data'!$C:$C,'Sanitized Raw Data'!$H:$H,">="&$B7,'Sanitized Raw Data'!$H:$H,"<"&$B8,'Sanitized Raw Data'!$D:$D,"Matching Grant") -> 0 | F7: =COUNTIFS('Sanitized Raw Data'!$H:$H,">="&$B7,'Sanitized Raw Data'!$H:$H,"<"&$B8,'Sanitized Raw Data'!$D:$D,"Cash") -> 0 | G7: =SUMIFS('Sanitized Raw Data'!$C:$C,'Sanitized Raw Data'!$H:$H,">="&$B7,'Sanitized Raw Data'!$H:$H,"<"&$B8,'Sanitized Raw Data'!$D:$D,"Cash") -> 0 | H7: =COUNTIFS('Sanitized Raw Data'!$H:$H,">="&$B7,'Sanitized Raw Data'!$H:$H,"<"&$B8,'Sanitized Raw Data'!$D:$D,"CC") -> 38 | I7: =SUMIFS('Sanitized Raw Data'!$C:$C,'Sanitized Raw Data'!$H:$H,">="&$B7,'Sanitized Raw Data'!$H:$H,"<"&$B8,'Sanitized Raw Data'!$D:$D,"CC") -> 3547.8 | J7: =COUNTIFS('Sanitized Raw Data'!$H:$H,">="&$B7,'Sanitized Raw Data'!$H:$H,"<"&$B8,'Sanitized Raw Data'!$D:$D,"PayPal") -> 5 | K7: =SUMIFS('Sanitized Raw Data'!$C:$C,'Sanitized Raw Data'!$H:$H,">="&$B7,'Sanitized Raw Data'!$H:$H,"<"&$B8,'Sanitized Raw Data'!$D:$D,"PayPal") -> 258 | L7: =COUNTIFS('Sanitized Raw Data'!$H:$H,">="&$B7,'Sanitized Raw Data'!$H:$H,"<"&$B8,'Sanitized Raw Data'!$D:$D,"Personal Check")+COUNTIFS('Sanitized Raw Data'!$H:$H,">="&$B7,'Sanitized Raw Data'!$H:$H,"<"&$B8,'Sanitized Raw Data'!$D:$D,"ACH Grant Deposit") -> 3 | M7: =SUMIFS('Sanitized Raw Data'!$C:$C,'Sanitized Raw Data'!$H:$H,">="&$B7,'Sanitized Raw Data'!$H:$H,"<"&$B8,'Sanitized Raw Data'!$D:$D,"Personal Check")+SUMIFS('Sanitized Raw Data'!$C:$C,'Sanitized Raw Data'!$H:$H,">="&$B7,'Sanitized Raw Data'!$H:$H,"<"&$B8,'Sanitized Raw Data'!$D:$D,"ACH Grant Deposit") -> 214 | N7: =SUM(G7,M7,K7,I7,N6,E7) -> 34326.71 | O7: =SUM(F7,H7,J7,L7,D7) -> 46 | P7: =SUM(F7,L7,J7,H7,P6,D7) -> 482 | Q7: =N7/P7 -> 71.21724066 | R7: =(SUM(G7,M7,K7,I7,E7))/(SUM(F7,H7,J7,L7,D7)) -> 87.38695652 | S7: =N7/Sheet11!$A4 -> 8581.6775 | T7: =(N7-N6)/C$3 -> 0.1009442017 | U7: =E7/(N7-N6) -> 0 | V7: =D7/O7 -> 0 | W7: =SUM(E$3:E7)/N7 -> 0 | X7: =SUM(D$3:D7)/O7 -> 0 | Y7: =G7/(N7-N6) -> 0 | Z7: =F7/O7 -> 0 | AA7: =SUM(G$3:G7)/N7 -> 0 | AB7: =SUM(F$3:F7)/O7 -> 0 | AC7: =I7/(N7-N6) -> 0.8825812229 | AD7: =H7/O7 -> 0.8260869565 | AE7: =SUM(I$3:I7)/N7 -> 0.7040983537 | AF7: =SUM(H$3:H7)/P7 -> 0.6514522822 | AG7: =K7/(N7-N6) -> 0.06418229763 | AH7: =J7/O7 -> 0.1086956522 | AI7: =SUM(K$3:K7)/N7 -> 0.09197881183 | AJ7: =SUM(J$3:J7)/P7 -> 0.2302904564 | AK7: =M7/(N7-N6) -> 0.05323647943 | AL7: =L7/O7 -> 0.0652173913 | AM7: =SUM(M$3:M7)/N7 -> 0.2039228344 | AN7: =SUM(L$3:L7)/P7 -> 0.1182572614 | AP7: Day 4 | AQ7: 2023-10-05 | AR7: 48752 | AS7: 0 | AT7: 0 | AU7: 0 | AV7: 0 | AW7: 34 | AX7: 2879.32 | AY7: 5 | AZ7: 267 | BA7: 1 | BB7: 51 | BC7: 23751.6 | BD7: 40 | BE7: 353 | BF7: 67.28498584 | BG7: 79.933 | BH7: 5937.9 | BI7: 0.06558336068 | BJ7: 0 | BK7: 0 | BL7: 0.002105121339 | BM7: 0.025 | BN7: 0 | BO7: 0 | BP7: 0 | BQ7: 0 | BR7: 0.9005417037 | BS7: 0.85 | BT7: 0.5840111824 | BU7: 0.4730878187 | BV7: 0.08350743748 | BW7: 0.125 | BX7: 0.1967277994 | BY7: 0.388101983 | BZ7: 0.01595085884 | CA7: 0.025 | CB7: 0.2171558969 | CC7: 0.1359773371 | CE7: Day 4 | CF7: 2023-04-14 | CG7: 50252 | CH7: 0 | CI7: 0 | CJ7: 0 | CK7: 0 | CL7: 13 | CM7: 1084.77 | CN7: 4 | CO7: 154.79 | CP7: 3 | CQ7: 172 | CR7: 25388.52 | CS7: 20 | CT7: 392 | CU7: 64.76663265 | CV7: 70.578 | CW7: 6347.13 | CX7: 0.02808962827 | CY7: 0 | CZ7: 0 | DA7: 0.009846970205 | DB7: 0.15 | DC7: 0 | DD7: 0 | DE7: 0 | DF7: 0 | DG7: 0.7684901811 | DH7: 0.65 | DI7: 0.6327332196 | DJ7: 0.5331632653 | DK7: 0.1096588172 | DL7: 0.2 | DM7: 0.1425805837 | DN7: 0.3086734694 | DO7: 0.1218510017 | DP7: 0.15 | DQ7: 0.2148392265 | DR7: 0.1505102041 | DT7: Day 4 | DU7: 2022-10-06 | DV7: 51670 | DW7: 0 | DX7: 0 | DY7: 0 | DZ7: 0 | EA7: 10 | EB7: 904 | EC7: 1 | ED7: 5 | EE7: 6 | EF7: 409.64 | EG7: 25309.15 | EH7: 17 | EI7: 365 | EJ7: 69.34013699 | EK7: 77.56705882 | EL7: 6327.2875 | EM7: 0.02552041804 | EN7: 0 | EO7: 0 | EP7: 0.01010267038 | EQ7: 0.2352941176 | ER7: 0 | ES7: 0 | ET7: 0 | EU7: 0 | EV7: 0.6855548141 | EW7: 0.5882352941 | EX7: 0.5756641373 | EY7: 0.4739726027 | EZ7: 0.003791785476 | FA7: 0.05882352941 | FB7: 0.1361649838 | FC7: 0.3068493151 | FD7: 0.3106534005 | FE7: 0.3529411765 | FF7: 0.2780682085 | FG7: 0.2082191781 | FI7: Day 4 | FJ7: 2022-04-09 | FK7: 54096 | FL7: 0 | FM7: 0 | FN7: 0 | FO7: 0 | FP7: 13 | FQ7: 586.16 | FR7: 1 | FS7: 5 | FT7: 3 | FU7: 250 | FV7: 35264 | FW7: 17 | FX7: 564 | FY7: 62.5248227 | FZ7: 49.48 | GA7: 8816 | GB7: 0.01554939367 | GC7: 0 | GD7: 0 | GE7: 0.006998071688 | GF7: 0.9411764706 | GG7: 0 | GH7: 0 | GI7: 0 | GJ7: 0 | GK7: 0.696847211 | GL7: 0.7647058824 | GM7: 0.5309012024 | GN7: 0.4875886525 | GO7: 0.005944172333 | GP7: 0.05882352941 | GQ7: 0.2303130672 | GR7: 0.304964539 | GS7: 0.2972086167 | GT7: 0.1764705882 | GU7: 0.2317876588 | GV7: 0.1790780142
A8: Day 5 | B8: 2024-04-20 | C8: 39822 | D8: =COUNTIFS('Sanitized Raw Data'!$H:$H,">="&$B8,'Sanitized Raw Data'!$H:$H,"<"&$B9,'Sanitized Raw Data'!$D:$D,"Matching Grant") -> 0 | E8: =SUMIFS('Sanitized Raw Data'!$C:$C,'Sanitized Raw Data'!$H:$H,">="&$B8,'Sanitized Raw Data'!$H:$H,"<"&$B9,'Sanitized Raw Data'!$D:$D,"Matching Grant") -> 0 | F8: =COUNTIFS('Sanitized Raw Data'!$H:$H,">="&$B8,'Sanitized Raw Data'!$H:$H,"<"&$B9,'Sanitized Raw Data'!$D:$D,"Cash") -> 0 | G8: =SUMIFS('Sanitized Raw Data'!$C:$C,'Sanitized Raw Data'!$H:$H,">="&$B8,'Sanitized Raw Data'!$H:$H,"<"&$B9,'Sanitized Raw Data'!$D:$D,"Cash") -> 0 | H8: =COUNTIFS('Sanitized Raw Data'!$H:$H,">="&$B8,'Sanitized Raw Data'!$H:$H,"<"&$B9,'Sanitized Raw Data'!$D:$D,"CC") -> 24 | I8: =SUMIFS('Sanitized Raw Data'!$C:$C,'Sanitized Raw Data'!$H:$H,">="&$B8,'Sanitized Raw Data'!$H:$H,"<"&$B9,'Sanitized Raw Data'!$D:$D,"CC") -> 1741.79 | J8: =COUNTIFS('Sanitized Raw Data'!$H:$H,">="&$B8,'Sanitized Raw Data'!$H:$H,"<"&$B9,'Sanitized Raw Data'!$D:$D,"PayPal") -> 0 | K8: =SUMIFS('Sanitized Raw Data'!$C:$C,'Sanitized Raw Data'!$H:$H,">="&$B8,'Sanitized Raw Data'!$H:$H,"<"&$B9,'Sanitized Raw Data'!$D:$D,"PayPal") -> 0 | L8: =COUNTIFS('Sanitized Raw Data'!$H:$H,">="&$B8,'Sanitized Raw Data'!$H:$H,"<"&$B9,'Sanitized Raw Data'!$D:$D,"Personal Check")+COUNTIFS('Sanitized Raw Data'!$H:$H,">="&$B8,'Sanitized Raw Data'!$H:$H,"<"&$B9,'Sanitized Raw Data'!$D:$D,"ACH Grant Deposit") -> 3 | M8: =SUMIFS('Sanitized Raw Data'!$C:$C,'Sanitized Raw Data'!$H:$H,">="&$B8,'Sanitized Raw Data'!$H:$H,"<"&$B9,'Sanitized Raw Data'!$D:$D,"Personal Check")+SUMIFS('Sanitized Raw Data'!$C:$C,'Sanitized Raw Data'!$H:$H,">="&$B8,'Sanitized Raw Data'!$H:$H,"<"&$B9,'Sanitized Raw Data'!$D:$D,"ACH Grant Deposit") -> 739 | N8: =SUM(G8,M8,K8,I8,N7,E8) -> 36807.5 | O8: =SUM(F8,H8,J8,L8,D8) -> 27 | P8: =SUM(F8,L8,J8,H8,P7,D8) -> 509 | Q8: =N8/P8 -> 72.31335953 | R8: =(SUM(G8,M8,K8,I8,E8))/(SUM(F8,H8,J8,L8,D8)) -> 91.88111111 | S8: =N8/Sheet11!$A5 -> 7361.5 | T8: =(N8-N7)/C$3 -> 0.06229697152 | U8: =E8/(N8-N7) -> 0 | V8: =D8/O8 -> 0 | W8: =SUM(E$3:E8)/N8 -> 0 | X8: =SUM(D$3:D8)/O8 -> 0 | Y8: =G8/(N8-N7) -> 0 | Z8: =F8/O8 -> 0 | AA8: =SUM(G$3:G8)/N8 -> 0 | AB8: =SUM(F$3:F8)/O8 -> 0 | AC8: =I8/(N8-N7) -> 0.7021110211 | AD8: =H8/O8 -> 0.8888888889 | AE8: =SUM(I$3:I8)/N8 -> 0.7039644094 | AF8: =SUM(H$3:H8)/P8 -> 0.6640471513 | AG8: =K8/(N8-N7) -> 0 | AH8: =J8/O8 -> 0 | AI8: =SUM(K$3:K8)/N8 -> 0.08577952863 | AJ8: =SUM(J$3:J8)/P8 -> 0.2180746562 | AK8: =M8/(N8-N7) -> 0.2978889789 | AL8: =L8/O8 -> 0.1111111111 | AM8: =SUM(M$3:M8)/N8 -> 0.2102560619 | AN8: =SUM(L$3:L8)/P8 -> 0.1178781925 | AP8: Day 5 | AQ8: 2023-10-06 | AR8: 48752 | AS8: 0 | AT8: 0 | AU8: 0 | AV8: 0 | AW8: 10 | AX8: 678.54 | AY8: 2 | AZ8: 115 | BA8: 3 | BB8: 216 | BC8: 24761.14 | BD8: 15 | BE8: 368 | BF8: 67.28570652 | BG8: 67.30266667 | BH8: 4952.228 | BI8: 0.02070766328 | BJ8: 0 | BK8: 0 | BL8: 0.002019293134 | BM8: 0.06666666667 | BN8: 0 | BO8: 0 | BP8: 0 | BQ8: 0 | BR8: 0.6721278998 | BS8: 0.6666666667 | BT8: 0.5876038018 | BU8: 0.4809782609 | BV8: 0.1139132674 | BW8: 0.1333333333 | BX8: 0.1933513562 | BY8: 0.3777173913 | BZ8: 0.2139588327 | CA8: 0.2 | CB8: 0.2170255489 | CC8: 0.1385869565 | CE8: Day 5 | CF8: 2023-04-15 | CG8: 50252 | CH8: 0 | CI8: 0 | CJ8: 0 | CK8: 0 | CL8: 30 | CM8: 1733.16 | CN8: 3 | CO8: 144.77 | CP8: 5 | CQ8: 285.77 | CR8: 27552.22 | CS8: 38 | CT8: 430 | CU8: 64.07493023 | CV8: 56.93947368 | CW8: 5510.444 | CX8: 0.04305699276 | CY8: 0 | CZ8: 0 | DA8: 0.009073678999 | DB8: 0.07894736842 | DC8: 0 | DD8: 0 | DE8: 0 | DF8: 0 | DG8: 0.8010167768 | DH8: 0.7894736842 | DI8: 0.6459486749 | DJ8: 0.5558139535 | DK8: 0.0669085363 | DL8: 0.07894736842 | DM8: 0.1366379914 | DN8: 0.288372093 | DO8: 0.1320746869 | DP8: 0.1315789474 | DQ8: 0.2083396547 | DR8: 0.1488372093 | DT8: Day 5 | DU8: 2022-10-07 | DV8: 51670 | DW8: 0 | DX8: 0 | DY8: 0 | DZ8: 0 | EA8: 5 | EB8: 300 | EC8: 1 | ED8: 50 | EE8: 0 | EF8: 0 | EG8: 25659.15 | EH8: 6 | EI8: 371 | EJ8: 69.16212938 | EK8: 58.33333333 | EL8: 5131.83 | EM8: 0.006773756532 | EN8: 0 | EO8: 0 | EP8: 0.009964866334 | EQ8: 0.6666666667 | ER8: 0 | ES8: 0 | ET8: 0 | EU8: 0 | EV8: 0.8571428571 | EW8: 0.8333333333 | EX8: 0.5795036079 | EY8: 0.4797843666 | EZ8: 0.1428571429 | FA8: 0.1666666667 | FB8: 0.1362562673 | FC8: 0.3045822102 | FD8: 0 | FE8: 0 | FF8: 0.2742752585 | FG8: 0.204851752 | FI8: Day 5 | FJ8: 2022-04-10 | FK8: 54096 | FL8: 0 | FM8: 0 | FN8: 0 | FO8: 0 | FP8: 7 | FQ8: 678 | FR8: 0 | FS8: 0 | FT8: 2 | FU8: 150 | FV8: 36092 | FW8: 9 | FX8: 573 | FY8: 62.9877836 | FZ8: 92 | GA8: 7218.4 | GB8: 0.01530612245 | GC8: 0 | GD8: 0 | GE8: 0.006837526322 | GF8: 1.777777778 | GG8: 0 | GH8: 0 | GI8: 0 | GJ8: 0 | GK8: 0.8188405797 | GL8: 0.7777777778 | GM8: 0.5375069267 | GN8: 0.4921465969 | GO8: 0 | GP8: 0 | GQ8: 0.2250293694 | GR8: 0.3001745201 | GS8: 0.1811594203 | GT8: 0.2222222222 | GU8: 0.2306261775 | GV8: 0.1797556719
A9: Day 6 | B9: 2024-04-21 | C9: 39822 | D9: =COUNTIFS('Sanitized Raw Data'!$H:$H,">="&$B9,'Sanitized Raw Data'!$H:$H,"<"&$B10,'Sanitized Raw Data'!$D:$D,"Matching Grant") -> 0 | E9: =SUMIFS('Sanitized Raw Data'!$C:$C,'Sanitized Raw Data'!$H:$H,">="&$B9,'Sanitized Raw Data'!$H:$H,"<"&$B10,'Sanitized Raw Data'!$D:$D,"Matching Grant") -> 0 | F9: =COUNTIFS('Sanitized Raw Data'!$H:$H,">="&$B9,'Sanitized Raw Data'!$H:$H,"<"&$B10,'Sanitized Raw Data'!$D:$D,"Cash") -> 0 | G9: =SUMIFS('Sanitized Raw Data'!$C:$C,'Sanitized Raw Data'!$H:$H,">="&$B9,'Sanitized Raw Data'!$H:$H,"<"&$B10,'Sanitized Raw Data'!$D:$D,"Cash") -> 0 | H9: =COUNTIFS('Sanitized Raw Data'!$H:$H,">="&$B9,'Sanitized Raw Data'!$H:$H,"<"&$B10,'Sanitized Raw Data'!$D:$D,"CC") -> 9 | I9: =SUMIFS('Sanitized Raw Data'!$C:$C,'Sanitized Raw Data'!$H:$H,">="&$B9,'Sanitized Raw Data'!$H:$H,"<"&$B10,'Sanitized Raw Data'!$D:$D,"CC") -> 986 | J9: =COUNTIFS('Sanitized Raw Data'!$H:$H,">="&$B9,'Sanitized Raw Data'!$H:$H,"<"&$B10,'Sanitized Raw Data'!$D:$D,"PayPal") -> 3 | K9: =SUMIFS('Sanitized Raw Data'!$C:$C,'Sanitized Raw Data'!$H:$H,">="&$B9,'Sanitized Raw Data'!$H:$H,"<"&$B10,'Sanitized Raw Data'!$D:$D,"PayPal") -> 89.78 | L9: =COUNTIFS('Sanitized Raw Data'!$H:$H,">="&$B9,'Sanitized Raw Data'!$H:$H,"<"&$B10,'Sanitized Raw Data'!$D:$D,"Personal Check")+COUNTIFS('Sanitized Raw Data'!$H:$H,">="&$B9,'Sanitized Raw Data'!$H:$H,"<"&$B10,'Sanitized Raw Data'!$D:$D,"ACH Grant Deposit") -> 0 | M9: =SUMIFS('Sanitized Raw Data'!$C:$C,'Sanitized Raw Data'!$H:$H,">="&$B9,'Sanitized Raw Data'!$H:$H,"<"&$B10,'Sanitized Raw Data'!$D:$D,"Personal Check")+SUMIFS('Sanitized Raw Data'!$C:$C,'Sanitized Raw Data'!$H:$H,">="&$B9,'Sanitized Raw Data'!$H:$H,"<"&$B10,'Sanitized Raw Data'!$D:$D,"ACH Grant Deposit") -> 0 | N9: =SUM(G9,M9,K9,I9,N8,E9) -> 37883.28 | O9: =SUM(F9,H9,J9,L9,D9) -> 12 | P9: =SUM(F9,L9,J9,H9,P8,D9) -> 521 | Q9: =N9/P9 -> 72.71262956 | R9: =(SUM(G9,M9,K9,I9,E9))/(SUM(F9,H9,J9,L9,D9)) -> 89.64833333 | S9: =N9/Sheet11!$A6 -> 6313.88 | T9: =(N9-N8)/C$3 -> 0.02701471548 | U9: =E9/(N9-N8) -> 0 | V9: =D9/O9 -> 0 | W9: =SUM(E$3:E9)/N9 -> 0 | X9: =SUM(D$3:D9)/O9 -> 0 | Y9: =G9/(N9-N8) -> 0 | Z9: =F9/O9 -> 0 | AA9: =SUM(G$3:G9)/N9 -> 0 | AB9: =SUM(F$3:F9)/O9 -> 0 | AC9: =I9/(N9-N8) -> 0.9165442749 | AD9: =H9/O9 -> 0.75 | AE9: =SUM(I$3:I9)/N9 -> 0.7100010876 | AF9: =SUM(H$3:H9)/P9 -> 0.6660268714 | AG9: =K9/(N9-N8) -> 0.08345572515 | AH9: =J9/O9 -> 0.25 | AI9: =SUM(K$3:K9)/N9 -> 0.08571353906 | AJ9: =SUM(J$3:J9)/P9 -> 0.2188099808 | AK9: =M9/(N9-N8) -> 0 | AL9: =L9/O9 -> 0 | AM9: =SUM(M$3:M9)/N9 -> 0.2042853734 | AN9: =SUM(L$3:L9)/P9 -> 0.1151631478 | AP9: Day 6 | AQ9: 2023-10-07 | AR9: 48752 | AS9: 0 | AT9: 0 | AU9: 0 | AV9: 0 | AW9: 6 | AX9: 264.54 | AY9: 1 | AZ9: 24 | BA9: 1 | BB9: 64 | BC9: 25113.68 | BD9: 8 | BE9: 376 | BF9: 66.79170213 | BG9: 44.0675 | BH9: 4185.613333 | BI9: 0.007231293075 | BJ9: 0 | BK9: 0 | BL9: 0.001990946767 | BM9: 0.125 | BN9: 0 | BO9: 0 | BP9: 0 | BQ9: 0 | BR9: 0.7503829353 | BS9: 0.75 | BT9: 0.5898888574 | BU9: 0.4867021277 | BV9: 0.06807738129 | BW9: 0.125 | BX9: 0.1915927893 | BY9: 0.3723404255 | BZ9: 0.1815396834 | CA9: 0.125 | CB9: 0.2165274066 | CC9: 0.1382978723 | CE9: Day 6 | CF9: 2023-04-16 | CG9: 50252 | CH9: 0 | CI9: 0 | CJ9: 0 | CK9: 0 | CL9: 13 | CM9: 837.97 | CN9: 1 | CO9: 100 | CP9: 0 | CQ9: 0 | CR9: 28490.19 | CS9: 14 | CT9: 444 | CU9: 64.16709459 | CV9: 66.99785714 | CW9: 4748.365 | CX9: 0.01866532675 | CY9: 0 | CZ9: 0 | DA9: 0.008774950255 | DB9: 0.2142857143 | DC9: 0 | DD9: 0 | DE9: 0 | DF9: 0 | DG9: 0.8933867821 | DH9: 0.9285714286 | DI9: 0.6540949709 | DJ9: 0.5675675676 | DK9: 0.1066132179 | DL9: 0.07142857143 | DM9: 0.135649499 | DN9: 0.2815315315 | DO9: 0 | DP9: 0 | DQ9: 0.2014805798 | DR9: 0.1441441441 | DT9: Day 6 | DU9: 2022-10-08 | DV9: 51670 | DW9: 0 | DX9: 0 | DY9: 0 | DZ9: 0 | EA9: 3 | EB9: 125 | EC9: 0 | ED9: 0 | EE9: 1 | EF9: 55 | EG9: 25839.15 | EH9: 4 | EI9: 375 | EJ9: 68.9044 | EK9: 45 | EL9: 4306.525 | EM9: 0.003483646216 | EN9: 0 | EO9: 0 | EP9: 0.009895449347 | EQ9: 1 | ER9: 0 | ES9: 0 | ET9: 0 | EU9: 0 | EV9: 0.6944444444 | EW9: 0.75 | EX9: 0.5803043057 | EY9: 0.4826666667 | EZ9: 0 | FA9: 0 | FB9: 0.1353070825 | FC9: 0.3013333333 | FD9: 0.3055555556 | FE9: 0.25 | FF9: 0.2744931625 | FG9: 0.2053333333 | FI9: Day 6 | FJ9: 2022-04-11 | FK9: 54096 | FL9: 0 | FM9: 0 | FN9: 0 | FO9: 0 | FP9: 71 | FQ9: 6121.4 | FR9: 23 | FS9: 979.63 | FT9: 6 | FU9: 339.01 | FV9: 43532.04 | FW9: 100 | FX9: 673 | FY9: 64.68356612 | FZ9: 74.4004 | GA9: 7255.34 | GB9: 0.1375340136 | GC9: 0 | GD9: 0 | GE9: 0.00566892799 | GF9: 0.16 | GG9: 0 | GH9: 0 | GI9: 0 | GJ9: 0 | GK9: 0.8227643937 | GL9: 0.71 | GM9: 0.5862601431 | GN9: 0.5245170877 | GO9: 0.131669991 | GP9: 0.23 | GQ9: 0.209073363 | GR9: 0.2897473997 | GS9: 0.04556561524 | GT9: 0.06 | GU9: 0.1989975659 | GV9: 0.161961367
A10: Day 7 | B10: 2024-04-22 | C10: 39822 | D10: =COUNTIFS('Sanitized Raw Data'!$H:$H,">="&$B10,'Sanitized Raw Data'!$H:$H,"<"&$B11,'Sanitized Raw Data'!$D:$D,"Matching Grant") -> 0 | E10: =SUMIFS('Sanitized Raw Data'!$C:$C,'Sanitized Raw Data'!$H:$H,">="&$B10,'Sanitized Raw Data'!$H:$H,"<"&$B11,'Sanitized Raw Data'!$D:$D,"Matching Grant") -> 0 | F10: =COUNTIFS('Sanitized Raw Data'!$H:$H,">="&$B10,'Sanitized Raw Data'!$H:$H,"<"&$B11,'Sanitized Raw Data'!$D:$D,"Cash") -> 0 | G10: =SUMIFS('Sanitized Raw Data'!$C:$C,'Sanitized Raw Data'!$H:$H,">="&$B10,'Sanitized Raw Data'!$H:$H,"<"&$B11,'Sanitized Raw Data'!$D:$D,"Cash") -> 0 | H10: =COUNTIFS('Sanitized Raw Data'!$H:$H,">="&$B10,'Sanitized Raw Data'!$H:$H,"<"&$B11,'Sanitized Raw Data'!$D:$D,"CC") -> 26 | I10: =SUMIFS('Sanitized Raw Data'!$C:$C,'Sanitized Raw Data'!$H:$H,">="&$B10,'Sanitized Raw Data'!$H:$H,"<"&$B11,'Sanitized Raw Data'!$D:$D,"CC") -> 1811.48 | J10: =COUNTIFS('Sanitized Raw Data'!$H:$H,">="&$B10,'Sanitized Raw Data'!$H:$H,"<"&$B11,'Sanitized Raw Data'!$D:$D,"PayPal") -> 2 | K10: =SUMIFS('Sanitized Raw Data'!$C:$C,'Sanitized Raw Data'!$H:$H,">="&$B10,'Sanitized Raw Data'!$H:$H,"<"&$B11,'Sanitized Raw Data'!$D:$D,"PayPal") -> 200 | L10: =COUNTIFS('Sanitized Raw Data'!$H:$H,">="&$B10,'Sanitized Raw Data'!$H:$H,"<"&$B11,'Sanitized Raw Data'!$D:$D,"Personal Check")+COUNTIFS('Sanitized Raw Data'!$H:$H,">="&$B10,'Sanitized Raw Data'!$H:$H,"<"&$B11,'Sanitized Raw Data'!$D:$D,"ACH Grant Deposit") -> 0 | M10: =SUMIFS('Sanitized Raw Data'!$C:$C,'Sanitized Raw Data'!$H:$H,">="&$B10,'Sanitized Raw Data'!$H:$H,"<"&$B11,'Sanitized Raw Data'!$D:$D,"Personal Check")+SUMIFS('Sanitized Raw Data'!$C:$C,'Sanitized Raw Data'!$H:$H,">="&$B10,'Sanitized Raw Data'!$H:$H,"<"&$B11,'Sanitized Raw Data'!$D:$D,"ACH Grant Deposit") -> 0 | N10: =SUM(G10,M10,K10,I10,N9,E10) -> 39894.76 | O10: =SUM(F10,H10,J10,L10,D10) -> 28 | P10: =SUM(F10,L10,J10,H10,P9,D10) -> 549 | Q10: =N10/P10 -> 72.668051 | R10: =(SUM(G10,M10,K10,I10,E10))/(SUM(F10,H10,J10,L10,D10)) -> 71.83857143 | S10: =N10/Sheet11!$A7 -> 5699.251429 | T10: =(N10-N9)/C$3 -> 0.05051177741 | U10: =E10/(N10-N9) -> 0 | V10: =D10/O10 -> 0 | W10: =SUM(E$3:E10)/N10 -> 0 | X10: =SUM(D$3:D10)/O10 -> 0 | Y10: =G10/(N10-N9) -> 0 | Z10: =F10/O10 -> 0 | AA10: =SUM(G$3:G10)/N10 -> 0 | AB10: =SUM(F$3:F10)/O10 -> 0 | AC10: =I10/(N10-N9) -> 0.900570724 | AD10: =H10/O10 -> 0.9285714286 | AE10: =SUM(I$3:I10)/N10 -> 0.7196095427 | AF10: =SUM(H$3:H10)/P10 -> 0.679417122 | AG10: =K10/(N10-N9) -> 0.09942927596 | AH10: =J10/O10 -> 0.07142857143 | AI10: =SUM(K$3:K10)/N10 -> 0.08640508177 | AJ10: =SUM(J$3:J10)/P10 -> 0.2112932605 | AK10: =M10/(N10-N9) -> 0 | AL10: =L10/O10 -> 0 | AM10: =SUM(M$3:M10)/N10 -> 0.1939853755 | AN10: =SUM(L$3:L10)/P10 -> 0.1092896175 | AP10: Day 7 | AQ10: 2023-10-08 | AR10: 48752 | AS10: 0 | AT10: 0 | AU10: 0 | AV10: 0 | AW10: 23 | AX10: 1686 | AY10: 4 | AZ10: 237 | BA10: 1 | BB10: 25 | BC10: 27061.68 | BD10: 28 | BE10: 404 | BF10: 66.98435644 | BG10: 69.57142857 | BH10: 3865.954286 | BI10: 0.03995733508 | BJ10: 0 | BK10: 0 | BL10: 0.001847631041 | BM10: 0.03571428571 | BN10: 0 | BO10: 0 | BP10: 0 | BQ10: 0 | BR10: 0.8655030801 | BS10: 0.8214285714 | BT10: 0.6097285904 | BU10: 0.5099009901 | BV10: 0.1216632444 | BW10: 0.1428571429 | BX10: 0.1865590015 | BY10: 0.3564356436 | BZ10: 0.01283367556 | CA10: 0.03571428571 | CB10: 0.2018647771 | CC10: 0.1311881188 | CE10: Day 7 | CF10: 2023-04-17 | CG10: 50252 | CH10: 0 | CI10: 0 | CJ10: 0 | CK10: 0 | CL10: 8 | CM10: 319.63 | CN10: 1 | CO10: 19.89 | CP10: 3 | CQ10: 350 | CR10: 29179.71 | CS10: 12 | CT10: 456 | CU10: 63.99059211 | CV10: 57.46 | CW10: 4168.53 | CX10: 0.01372124493 | CY10: 0 | CZ10: 0 | DA10: 0.008567597142 | DB10: 0.25 | DC10: 0 | DD10: 0 | DE10: 0 | DF10: 0 | DG10: 0.4635543567 | DH10: 0.6666666667 | DI10: 0.6495924737 | DJ10: 0.5701754386 | DK10: 0.02884615385 | DL10: 0.08333333333 | DM10: 0.1331257233 | DN10: 0.2763157895 | DO10: 0.5075994895 | DP10: 0.25 | DQ10: 0.2087142059 | DR10: 0.1469298246 | DT10: Day 7 | DU10: 2022-10-09 | DV10: 51670 | DW10: 0 | DX10: 0 | DY10: 0 | DZ10: 0 | EA10: 5 | EB10: 214.77 | EC10: 1 | ED10: 5 | EE10: 1 | EF10: 500 | EG10: 26558.92 | EH10: 7 | EI10: 382 | EJ10: 69.52596859 | EK10: 102.8242857 | EL10: 3794.131429 | EM10: 0.01393013354 | EN10: 0 | EO10: 0 | EP10: 0.009627274001 | EQ10: 0.5714285714 | ER10: 0 | ES10: 0 | ET10: 0 | EU10: 0 | EV10: 0.2983869847 | EW10: 0.7142857143 | EX10: 0.5726640993 | EY10: 0.4869109948 | EZ10: 0.006946663518 | FA10: 0.1428571429 | FB10: 0.1318284027 | FC10: 0.2984293194 | FD10: 0.6946663518 | FE10: 0.1428571429 | FF10: 0.285880224 | FG10: 0.2041884817 | FI10: Day 7 | FJ10: 2022-04-12 | FK10: 54096 | FL10: 0 | FM10: 0 | FN10: 0 | FO10: 0 | FP10: 27 | FQ10: 1654.95 | FR10: 3 | FS10: 375 | FT10: 6 | FU10: 370 | FV10: 45931.99 | FW10: 36 | FX10: 709 | FY10: 64.784189 | FZ10: 66.66527778 | GA10: 6561.712857 | GB10: 0.04436464803 | GC10: 0 | GD10: 0 | GE10: 0.005372726067 | GF10: 0.4444444444 | GG10: 0 | GH10: 0 | GI10: 0 | GJ10: 0 | GK10: 0.6895768662 | GL10: 0.75 | GM10: 0.5916584498 | GN10: 0.5359661495 | GO10: 0.1562532553 | GP10: 0.08333333333 | GQ10: 0.2063135083 | GR10: 0.2792665726 | GS10: 0.1541698785 | GT10: 0.1666666667 | GU10: 0.1966553158 | GV10: 0.1622002821
A11: Day 8 | B11: 2024-04-23 | C11: 39822 | AP11: Day 8 | AQ11: 2023-10-09 | AR11: 48752 | AS11: 0 | AT11: 0 | AU11: 0 | AV11: 0 | AW11: 11 | AX11: 799.79 | AY11: 4 | AZ11: 149.89 | BA11: 1 | BB11: 25 | BC11: 28036.36 | BD11: 16 | BE11: 420 | BF11: 66.7532381 | BG11: 60.9175 | BH11: 3504.545 | BI11: 0.01999261569 | BJ11: 0 | BK11: 0 | BL11: 0.001783398415 | BM11: 0.0625 | BN11: 0 | BO11: 0 | BP11: 0 | BQ11: 0 | BR11: 0.8205667501 | BS11: 0.6875 | BT11: 0.6170583485 | BU11: 0.5166666667 | BV11: 0.153783806 | BW11: 0.25 | BX11: 0.1854195766 | BY11: 0.3523809524 | BZ11: 0.02564944392 | CA11: 0.0625 | CB11: 0.1957386765 | CC11: 0.1285714286 | CE11: Day 8 | CF11: 2023-04-18 | CG11: 50252 | CH11: 0 | CI11: 0 | CJ11: 0 | CK11: 0 | CL11: 17 | CM11: 1100.47 | CN11: 2 | CO11: 69.79 | CP11: 0 | CQ11: 0 | CR11: 30349.97 | CS11: 19 | CT11: 475 | CU11: 63.89467368 | CV11: 61.59263158 | CW11: 3793.74625 | CX11: 0.02328782934 | CY11: 0 | CZ11: 0 | DA11: 0.008237240432 | DB11: 0.1578947368 | DC11: 0 | DD11: 0 | DE11: 0 | DF11: 0 | DG11: 0.9403636799 | DH11: 0.8947368421 | DI11: 0.6608042776 | DJ11: 0.5831578947 | DK11: 0.05963632013 | DL11: 0.1052631579 | DM11: 0.1302920563 | DN11: 0.2694736842 | DO11: 0 | DP11: 0 | DQ11: 0.2006664257 | DR11: 0.1410526316 | DT11: Day 8 | DU11: 2022-10-10 | DV11: 51670 | DW11: 0 | DX11: 0 | DY11: 0 | DZ11: 0 | EA11: 109 | EB11: 7196.39 | EC11: 34 | ED11: 2233.26 | EE11: 13 | EF11: 1180 | EG11: 37168.57 | EH11: 156 | EI11: 538 | EJ11: 69.08656134 | EK11: 68.01057692 | EL11: 4646.07125 | EM11: 0.2053348171 | EN11: 0 | EO11: 0 | EP11: 0.00687919928 | EQ11: 0.02564102564 | ER11: 0 | ES11: 0 | ET11: 0 | EU11: 0 | EV11: 0.6782872197 | EW11: 0.6987179487 | EX11: 0.6028138828 | EY11: 0.5483271375 | EZ11: 0.2104932773 | FA11: 0.2179487179 | FB11: 0.1542830408 | FC11: 0.2750929368 | FD11: 0.111219503 | FE11: 0.08333333333 | FF11: 0.2360238772 | FG11: 0.1691449814 | FI11: Day 8 | FJ11: 2022-04-13 | FK11: 54096 | FL11: 0 | FM11: 0 | FN11: 0 | FO11: 0 | FP11: 17 | FQ11: 1027.93 | FR11: 3 | FS11: 80 | FT11: 3 | FU11: 103.63 | FV11: 47143.55 | FW11: 23 | FX11: 732 | FY11: 64.40375683 | FZ11: 52.67652174 | GA11: 5892.94375 | GB11: 0.02239648033 | GC11: 0 | GD11: 0 | GE11: 0.005234650339 | GF11: 0.6956521739 | GG11: 0 | GH11: 0 | GI11: 0 | GJ11: 0 | GK11: 0.8484350754 | GL11: 0.7391304348 | GM11: 0.5982574499 | GN11: 0.5423497268 | GO11: 0.06603057215 | GP11: 0.1304347826 | GQ11: 0.2027083238 | GR11: 0.2745901639 | GS11: 0.08553435241 | GT11: 0.1304347826 | GU11: 0.193799576 | GV11: 0.1612021858
A12: Day 9 | B12: 2024-04-24 | C12: 39822 | AP12: Day 9 | AQ12: 2023-10-10 | AR12: 48752 | AS12: 0 | AT12: 0 | AU12: 0 | AV12: 0 | AW12: 92 | AX12: 6860.3 | AY12: 18 | AZ12: 892 | BA12: 4 | BB12: 318 | BC12: 36106.66 | BD12: 114 | BE12: 534 | BF12: 67.61546816 | BG12: 70.79210526 | BH12: 4011.851111 | BI12: 0.1655378241 | BJ12: 0 | BK12: 0 | BL12: 0.001384786075 | BM12: 0.008771929825 | BN12: 0 | BO12: 0 | BP12: 0 | BQ12: 0 | BR12: 0.8500675316 | BS12: 0.8070175439 | BT12: 0.6691388791 | BU12: 0.5786516854 | BV12: 0.1105287288 | BW12: 0.1578947368 | BX12: 0.1686805149 | BY12: 0.3108614232 | BZ12: 0.03940373964 | CA12: 0.0350877193 | CB12: 0.1607958199 | CC12: 0.1086142322 | CE12: Day 9 | CF12: 2023-04-19 | CG12: 50252 | CH12: 0 | CI12: 0 | CJ12: 0 | CK12: 0 | CL12: 85 | CM12: 6611.55 | CN12: 10 | CO12: 614 | CP12: 3 | CQ12: 183 | CR12: 37758.52 | CS12: 98 | CT12: 573 | CU12: 65.89619546 | CV12: 75.59744898 | CW12: 4195.391111 | CX12: 0.1474279631 | CY12: 0 | CZ12: 0 | DA12: 0.006621022222 | DB12: 0.0306122449 | DC12: 0 | DD12: 0 | DE12: 0 | DF12: 0 | DG12: 0.892421594 | DH12: 0.8673469388 | DI12: 0.7062496094 | DJ12: 0.6317626527 | DK12: 0.08287721619 | DL12: 0.1020408163 | DM12: 0.1209888523 | DN12: 0.2408376963 | DO12: 0.02470118984 | DP12: 0.0306122449 | DQ12: 0.1661405161 | DR12: 0.1221640489 | DT12: Day 9 | DU12: 2022-10-11 | DV12: 51670 | DW12: 0 | DX12: 0 | DY12: 0 | DZ12: 0 | EA12: 18 | EB12: 1503.52 | EC12: 2 | ED12: 35 | EE12: 3 | EF12: 90 | EG12: 38797.09 | EH12: 23 | EI12: 561 | EJ12: 69.15702317 | EK12: 70.80521739 | EL12: 4310.787778 | EM12: 0.03151770853 | EN12: 0 | EO12: 0 | EP12: 0.006590442737 | EQ12: 0.1739130435 | ER12: 0 | ES12: 0 | ET12: 0 | EU12: 0 | EV12: 0.9232431901 | EW12: 0.7826086957 | EX12: 0.6162640033 | EY12: 0.5579322638 | EZ12: 0.02149190676 | FA12: 0.08695652174 | FB12: 0.1487090913 | FC12: 0.2673796791 | FD12: 0.0552649031 | FE12: 0.1304347826 | FF12: 0.2284364626 | FG12: 0.1675579323 | FI12: Day 9 | FJ12: 2022-04-14 | FK12: 54096 | FL12: 0 | FM12: 0 | FN12: 0 | FO12: 0 | FP12: 9 | FQ12: 579.79 | FR12: 3 | FS12: 90 | FT12: 3 | FU12: 144.79 | FV12: 47958.13 | FW12: 15 | FX12: 747 | FY12: 64.20097724 | FZ12: 54.30533333 | GA12: 5328.681111 | GB12: 0.01505804496 | GC12: 0 | GD12: 0 | GE12: 0.005145738585 | GF12: 1.066666667 | GG12: 0 | GH12: 0 | GI12: 0 | GJ12: 0 | GK12: 0.7117655724 | GL12: 0.6 | GM12: 0.6001854117 | GN12: 0.5435073628 | GO12: 0.1104863856 | GP12: 0.2 | GQ12: 0.2011419127 | GR12: 0.2730923695 | GS12: 0.1777480419 | GT12: 0.2 | GU12: 0.1935269369 | GV12: 0.1619812584
A13: Day 10 | B13: 2024-04-25 | C13: 39822 | AP13: Day 10 | AQ13: 2023-10-11 | AR13: 48752 | AS13: 0 | AT13: 0 | AU13: 0 | AV13: 0 | AW13: 15 | AX13: 1015 | AY13: 3 | AZ13: 79.79 | BA13: 2 | BB13: 208 | BC13: 37409.45 | BD13: 20 | BE13: 554 | BF13: 67.52608303 | BG13: 65.1395 | BH13: 3740.945 | BI13: 0.02672280112 | BJ13: 0 | BK13: 0 | BL13: 0.001336560682 | BM13: 0.05 | BN13: 0 | BO13: 0 | BP13: 0 | BQ13: 0 | BR13: 0.7790971684 | BS13: 0.75 | BT13: 0.6729681939 | BU13: 0.5848375451 | BV13: 0.06124548085 | BW13: 0.15 | BX13: 0.1649390729 | BY13: 0.3050541516 | BZ13: 0.1596573508 | CA13: 0.1 | CB13: 0.1607561726 | CC13: 0.1083032491 | CE13: Day 10 | CF13: 2023-04-20 | CG13: 50252 | CH13: 0 | CI13: 0 | CJ13: 0 | CK13: 0 | CL13: 23 | CM13: 2011.79 | CN13: 3 | CO13: 350 | CP13: 5 | CQ13: 731 | CR13: 40851.31 | CS13: 31 | CT13: 604 | CU13: 67.63461921 | CV13: 99.76741935 | CW13: 4085.131 | CX13: 0.06154561012 | CY13: 0 | CZ13: 0 | DA13: 0.006119754789 | DB13: 0.09677419355 | DC13: 0 | DD13: 0 | DE13: 0 | DF13: 0 | DG13: 0.6504774007 | DH13: 0.7419354839 | DI13: 0.702027181 | DJ13: 0.6374172185 | DK13: 0.113166429 | DL13: 0.09677419355 | DM13: 0.1203966287 | DN13: 0.2334437086 | DO13: 0.2363561703 | DP13: 0.1612903226 | DQ13: 0.1714564355 | DR13: 0.1241721854 | DT13: Day 10 | DU13: 2022-10-12 | DV13: 51670 | DW13: 0 | DX13: 0 | DY13: 0 | DZ13: 0 | EA13: 15 | EB13: 1167.19 | EC13: 0 | ED13: 0 | EE13: 4 | EF13: 921 | EG13: 40885.28 | EH13: 19 | EI13: 580 | EJ13: 70.49186207 | EK13: 109.9047368 | EL13: 4088.528 | EM13: 0.04041397329 | EN13: 0 | EO13: 0 | EP13: 0.006253840013 | EQ13: 0.2105263158 | ER13: 0 | ES13: 0 | ET13: 0 | EU13: 0 | EV13: 0.55894818 | EW13: 0.7894736842 | EX13: 0.6133366336 | EY13: 0.5655172414 | EZ13: 0 | FA13: 0 | FB13: 0.1411138679 | FC13: 0.2586206897 | FD13: 0.44105182 | FE13: 0.2105263158 | FF13: 0.2392956585 | FG13: 0.1689655172 | FI13: Day 10 | FJ13: 2022-04-15 | FK13: 54096 | FL13: 0 | FM13: 0 | FN13: 0 | FO13: 0 | FP13: 4 | FQ13: 168.79 | FR13: 2 | FS13: 74 | FT13: 1 | FU13: 200 | FV13: 48400.92 | FW13: 7 | FX13: 754 | FY13: 64.19220159 | FZ13: 63.25571429 | GA13: 4840.092 | GB13: 0.008185263236 | GC13: 0 | GD13: 0 | GE13: 0.005098663414 | GF13: 2.285714286 | GG13: 0 | GH13: 0 | GI13: 0 | GJ13: 0 | GK13: 0.381196504 | GL13: 0.5714285714 | GM13: 0.598182018 | GN13: 0.5437665782 | GO13: 0.1671221121 | GP13: 0.2857142857 | GQ13: 0.2008306867 | GR13: 0.2732095491 | GS13: 0.451681384 | GT13: 0.1428571429 | GU13: 0.1958886319 | GV13: 0.1618037135
A14: Day 11 | B14: 2024-04-26 | C14: 39822 | AP14: Day 11 | AQ14: 2023-10-12 | AR14: 48752 | AS14: 0 | AT14: 0 | AU14: 0 | AV14: 0 | AW14: 7 | AX14: 403 | AY14: 0 | AZ14: 0 | BA14: 0 | BB14: 0 | BC14: 37812.45 | BD14: 7 | BE14: 561 | BF14: 67.40187166 | BG14: 57.57142857 | BH14: 3437.495455 | BI14: 0.008266327535 | BJ14: 0 | BK14: 0 | BL14: 0.001322315798 | BM14: 0.1428571429 | BN14: 0 | BO14: 0 | BP14: 0 | BQ14: 0 | BR14: 1 | BS14: 1 | BT14: 0.6764536548 | BU14: 0.5900178253 | BV14: 0 | BW14: 0 | BX14: 0.1631811745 | BY14: 0.3012477718 | BZ14: 0 | CA14: 0 | CB14: 0.1590428549 | CC14: 0.1069518717 | CE14: Day 11 | CF14: 2023-04-21 | CG14: 50252 | CH14: 0 | CI14: 0 | CJ14: 0 | CK14: 0 | CL14: 9 | CM14: 644.54 | CN14: 3 | CO14: 200 | CP14: 0 | CQ14: 0 | CR14: 41695.85 | CS14: 12 | CT14: 616 | CU14: 67.68806818 | CV14: 70.37833333 | CW14: 3790.531818 | CX14: 0.01680609727 | CY14: 0 | CZ14: 0 | DA14: 0.005995800541 | DB14: 0.25 | DC14: 0 | DD14: 0 | DE14: 0 | DF14: 0 | DG14: 0.7631846923 | DH14: 0.75 | DI14: 0.7032659126 | DJ14: 0.6396103896 | DK14: 0.2368153077 | DL14: 0.25 | DM14: 0.1227546626 | DN14: 0.2337662338 | DO14: 0 | DP14: 0 | DQ14: 0.1679836243 | DR14: 0.1217532468 | DT14: Day 11 | DU14: 2022-10-13 | DV14: 51670 | DW14: 0 | DX14: 0 | DY14: 0 | DZ14: 0 | EA14: 8 | EB14: 275 | EC14: 1 | ED14: 25 | EE14: 3 | EF14: 190 | EG14: 41375.28 | EH14: 12 | EI14: 592 | EJ14: 69.89067568 | EK14: 40.83333333 | EL14: 3761.389091 | EM14: 0.009483259145 | EN14: 0 | EO14: 0 | EP14: 0.00617977691 | EQ14: 0.3333333333 | ER14: 0 | ES14: 0 | ET14: 0 | EU14: 0 | EV14: 0.5612244898 | EW14: 0.6666666667 | EX14: 0.6127194789 | EY14: 0.5675675676 | EZ14: 0.05102040816 | FA14: 0.08333333333 | FB14: 0.1400469072 | FC14: 0.2550675676 | FD14: 0.387755102 | FE14: 0.25 | FF14: 0.241053837 | FG14: 0.1706081081 | FI14: Day 11 | FJ14: 2022-04-16 | FK14: 54096 | FL14: 0 | FM14: 0 | FN14: 0 | FO14: 0 | FP14: 2 | FQ14: 70 | FR14: 1 | FS14: 19.89 | FT14: 2 | FU14: 150 | FV14: 48640.81 | FW14: 5 | FX14: 759 | FY14: 64.08538867 | FZ14: 47.978 | GA14: 4421.891818 | GB14: 0.00443452381 | GC14: 0 | GD14: 0 | GE14: 0.005073517485 | GF14: 3.2 | GG14: 0 | GH14: 0 | GI14: 0 | GJ14: 0 | GK14: 0.2918004085 | GL14: 0.4 | GM14: 0.5966709847 | GN14: 0.5428194993 | GO14: 0.08291300179 | GP14: 0.2 | GQ14: 0.2002491324 | GR14: 0.2727272727 | GS14: 0.6252865897 | GT14: 0.4 | GU14: 0.1980063654 | GV14: 0.163372859
A15: Day 12 | B15: 2024-04-27 | C15: 39822 | AP15: Day 12 | AQ15: 2023-10-13 | AR15: 48752 | AS15: 0 | AT15: 0 | AU15: 0 | AV15: 0 | AW15: 8 | AX15: 544.89 | AY15: 0 | AZ15: 0 | BA15: 0 | BB15: 0 | BC15: 38357.34 | BD15: 8 | BE15: 569 | BF15: 67.41184534 | BG15: 68.11125 | BH15: 3196.445 | BI15: 0.01117677223 | BJ15: 0 | BK15: 0 | BL15: 0.001303531475 | BM15: 0.125 | BN15: 0 | BO15: 0 | BP15: 0 | BQ15: 0 | BR15: 1 | BS15: 1 | BT15: 0.681049833 | BU15: 0.5957820738 | BV15: 0 | BW15: 0 | BX15: 0.1608630838 | BY15: 0.2970123023 | BZ15: 0 | CA15: 0 | CB15: 0.1567835517 | CC15: 0.1054481547 | CE15: Day 12 | CF15: 2023-04-22 | CG15: 50252 | CH15: 0 | CI15: 0 | CJ15: 0 | CK15: 0 | CL15: 9 | CM15: 809 | CN15: 0 | CO15: 0 | CP15: 0 | CQ15: 0 | CR15: 42504.85 | CS15: 9 | CT15: 625 | CU15: 68.00776 | CV15: 89.88888889 | CW15: 3542.070833 | CX15: 0.01609886174 | CY15: 0 | CZ15: 0 | DA15: 0.005881681737 | DB15: 0.3333333333 | DC15: 0 | DD15: 0 | DE15: 0 | DF15: 0 | DG15: 1 | DH15: 1 | DI15: 0.7089136887 | DJ15: 0.6448 | DK15: 0 | DL15: 0 | DM15: 0.1204182582 | DN15: 0.2304 | DO15: 0 | DP15: 0 | DQ15: 0.1647863714 | DR15: 0.12 | DT15: Day 12 | DU15: 2022-10-14 | DV15: 51670 | DW15: 0 | DX15: 0 | DY15: 0 | DZ15: 0 | EA15: 3 | EB15: 100 | EC15: 1 | ED15: 25 | EE15: 1 | EF15: 1000 | EG15: 42500.28 | EH15: 5 | EI15: 597 | EJ15: 71.18974874 | EK15: 225 | EL15: 3541.69 | EM15: 0.02177278885 | EN15: 0 | EO15: 0 | EP15: 0.006016195658 | EQ15: 0.8 | ER15: 0 | ES15: 0 | ET15: 0 | EU15: 0 | EV15: 0.08888888889 | EW15: 0.6 | EX15: 0.5988534664 | EY15: 0.567839196 | EZ15: 0.02222222222 | FA15: 0.2 | FB15: 0.1369280391 | FC15: 0.2546063652 | FD15: 0.8888888889 | FE15: 0.2 | FF15: 0.2582022989 | FG15: 0.1708542714 | FI15: Day 12 | FJ15: 2022-04-17 | FK15: 54096 | FL15: 0 | FM15: 0 | FN15: 0 | FO15: 0 | FP15: 1 | FQ15: 50 | FR15: 1 | FS15: 25 | FT15: 0 | FU15: 0 | FV15: 48715.81 | FW15: 2 | FX15: 761 | FY15: 64.01551905 | FZ15: 37.5 | GA15: 4059.650833 | GB15: 0.001386424135 | GC15: 0 | GD15: 0 | GE15: 0.005065706595 | GF15: 8 | GG15: 0 | GH15: 0 | GI15: 0 | GJ15: 0 | GK15: 0.6666666667 | GL15: 0.5 | GM15: 0.596778746 | GN15: 0.5427069645 | GO15: 0.3333333333 | GP15: 0.5 | GQ15: 0.200454021 | GR15: 0.2733245729 | GS15: 0 | GT15: 0 | GU15: 0.1977015265 | GV15: 0.1629434954
A16: Day 13 | B16: 2024-04-28 | C16: 39822 | AP16: Day 13 | AQ16: 2023-10-14 | AR16: 48752 | AS16: 0 | AT16: 0 | AU16: 0 | AV16: 0 | AW16: 4 | AX16: 475 | AY16: 0 | AZ16: 0 | BA16: 0 | BB16: 0 | BC16: 38832.34 | BD16: 4 | BE16: 573 | BF16: 67.77022688 | BG16: 118.75 | BH16: 2987.103077 | BI16: 0.009743190023 | BJ16: 0 | BK16: 0 | BL16: 0.001287586584 | BM16: 0.25 | BN16: 0 | BO16: 0 | BP16: 0 | BQ16: 0 | BR16: 1 | BS16: 1 | BT16: 0.6849512545 | BU16: 0.5986038394 | BV16: 0 | BW16: 0 | BX16: 0.1588953949 | BY16: 0.294938918 | BZ16: 0 | CA16: 0 | CB16: 0.1548657639 | CC16: 0.1047120419 | CE16: Day 13 | CF16: 2023-04-23 | CG16: 50252 | CH16: 0 | CI16: 0 | CJ16: 0 | CK16: 0 | CL16: 10 | CM16: 793.79 | CN16: 0 | CO16: 0 | CP16: 0 | CQ16: 0 | CR16: 43298.64 | CS16: 10 | CT16: 635 | CU16: 68.18683465 | CV16: 79.379 | CW16: 3330.664615 | CX16: 0.01579618722 | CY16: 0 | CZ16: 0 | DA16: 0.005773853405 | DB16: 0.3 | DC16: 0 | DD16: 0 | DE16: 0 | DF16: 0 | DG16: 1 | DH16: 1 | DI16: 0.7142501473 | DJ16: 0.6503937008 | DK16: 0 | DL16: 0 | DM16: 0.1182106413 | DN16: 0.2267716535 | DO16: 0 | DP16: 0 | DQ16: 0.161765358 | DR16: 0.1181102362 | DT16: Day 13 | DU16: 2022-10-15 | DV16: 51670 | DW16: 0 | DX16: 0 | DY16: 0 | DZ16: 0 | EA16: 2 | EB16: 127.77 | EC16: 0 | ED16: 0 | EE16: 1 | EF16: 500 | EG16: 43128.05 | EH16: 3 | EI16: 600 | EJ16: 71.88008333 | EK16: 209.2566667 | EL16: 3317.542308 | EM16: 0.01214960325 | EN16: 0 | EO16: 0 | EP16: 0.005928624178 | EQ16: 1.333333333 | ER16: 0 | ES16: 0 | ET16: 0 | EU16: 0 | EV16: 0.2035299552 | EW16: 0.6666666667 | EX16: 0.5930991547 | EY16: 0.5683333333 | EZ16: 0 | FA16: 0 | FB16: 0.1349349205 | FC16: 0.2533333333 | FD16: 0.7964700448 | FE16: 0.3333333333 | FF16: 0.2660373006 | FG16: 0.1716666667 | FI16: Day 13 | FJ16: 2022-04-18 | FK16: 54096 | FL16: 0 | FM16: 0 | FN16: 0 | FO16: 0 | FP16: 4 | FQ16: 169.79 | FR16: 1 | FS16: 150 | FT16: 1 | FU16: 50 | FV16: 49085.6 | FW16: 6 | FX16: 767 | FY16: 63.99687093 | FZ16: 61.63166667 | GA16: 3775.815385 | GB16: 0.006835810411 | GC16: 0 | GD16: 0 | GE16: 0.00502754372 | GF16: 2.666666667 | GG16: 0 | GH16: 0 | GI16: 0 | GJ16: 0 | GK16: 0.459152492 | GL16: 0.6666666667 | GM16: 0.5957419284 | GN16: 0.5436766623 | GO16: 0.405635631 | GP16: 0.1666666667 | GQ16: 0.2019997718 | GR16: 0.2724902216 | GS16: 0.135211877 | GT16: 0.1666666667 | GU16: 0.1972307561 | GV16: 0.1629726206
A17: Day 14 | B17: 2024-04-29 | C17: 39822 | AP17: Day 14 | AQ17: 2023-10-15 | AR17: 48752 | AS17: 0 | AT17: 0 | AU17: 0 | AV17: 0 | AW17: 5 | AX17: 450 | AY17: 0 | AZ17: 0 | BA17: 0 | BB17: 0 | BC17: 39282.34 | BD17: 5 | BE17: 578 | BF17: 67.96252595 | BG17: 90 | BH17: 2805.881429 | BI17: 0.009230390548 | BJ17: 0 | BK17: 0 | BL17: 0.001272836598 | BM17: 0.2 | BN17: 0 | BO17: 0 | BP17: 0 | BQ17: 0 | BR17: 1 | BS17: 1 | BT17: 0.6885603047 | BU17: 0.6020761246 | BV17: 0 | BW17: 0 | BX17: 0.1570751641 | BY17: 0.2923875433 | BZ17: 0 | CA17: 0 | CB17: 0.1530916946 | CC17: 0.1038062284 | CE17: Day 14 | CF17: 2023-04-24 | CG17: 50252 | CH17: 0 | CI17: 0 | CJ17: 0 | CK17: 0 | CL17: 36 | CM17: 2539.98 | CN17: 0 | CO17: 0 | CP17: 1 | CQ17: 64 | CR17: 45902.62 | CS17: 37 | CT17: 672 | CU17: 68.30747024 | CV17: 70.37783784 | CW17: 3278.758571 | CX17: 0.05181843509 | CY17: 0 | CZ17: 0 | DA17: 0.005446312215 | DB17: 0.08108108108 | DC17: 0 | DD17: 0 | DE17: 0 | DF17: 0 | DG17: 0.9754222383 | DH17: 0.972972973 | DI17: 0.7290660097 | DJ17: 0.6681547619 | DK17: 0 | DL17: 0 | DM17: 0.1115047464 | DN17: 0.2142857143 | DO17: 0.02457776173 | DP17: 0.02702702703 | DQ17: 0.1539829317 | DR17: 0.1130952381 | DT17: Day 14 | DU17: 2022-10-16 | DV17: 51670 | DW17: 0 | DX17: 0 | DY17: 0 | DZ17: 0 | EA17: 3 | EB17: 105 | EC17: 1 | ED17: 100 | EE17: 0 | EF17: 0 | EG17: 43333.05 | EH17: 4 | EI17: 604 | EJ17: 71.74346026 | EK17: 51.25 | EL17: 3095.217857 | EM17: 0.003967485969 | EN17: 0 | EO17: 0 | EP17: 0.005900577042 | EQ17: 1 | ER17: 0 | ES17: 0 | ET17: 0 | EU17: 0 | EV17: 0.512195122 | EW17: 0.75 | EX17: 0.5927164139 | EY17: 0.5695364238 | EZ17: 0.487804878 | FA17: 0.25 | FB17: 0.1366042778 | FC17: 0.2533112583 | FD17: 0 | FE17: 0 | FF17: 0.2647787312 | FG17: 0.1705298013 | FI17: Day 14 | FJ17: 2022-04-19 | FK17: 54096 | FL17: 0 | FM17: 0 | FN17: 0 | FO17: 0 | FP17: 6 | FQ17: 614 | FR17: 0 | FS17: 0 | FT17: 0 | FU17: 0 | FV17: 49699.6 | FW17: 6 | FX17: 773 | FY17: 64.29443726 | FZ17: 102.3333333 | GA17: 3549.971429 | GB17: 0.01135019225 | GC17: 0 | GD17: 0 | GE17: 0.004965432317 | GF17: 2.666666667 | GG17: 0 | GH17: 0 | GI17: 0 | GJ17: 0 | GK17: 1 | GL17: 1 | GM17: 0.6007362232 | GN17: 0.5472186287 | GO17: 0 | GP17: 0 | GQ17: 0.1995042214 | GR17: 0.2703751617 | GS17: 0 | GT17: 0 | GU17: 0.1947941231 | GV17: 0.1617076326
A18: Day 15 | B18: 2024-04-30 | C18: 39822 | AP18: Day 15 | AQ18: 2023-10-16 | AR18: 48752 | AS18: 0 | AT18: 0 | AU18: 0 | AV18: 0 | AW18: 8 | AX18: 679 | AY18: 2 | AZ18: 200 | BA18: 0 | BB18: 0 | BC18: 40161.34 | BD18: 10 | BE18: 588 | BF18: 68.30159864 | BG18: 87.9 | BH18: 2677.422667 | BI18: 0.01803002954 | BJ18: 0 | BK18: 0 | BL18: 0.00124497838 | BM18: 0.1 | BN18: 0 | BO18: 0 | BP18: 0 | BQ18: 0 | BR18: 0.7724687144 | BS18: 0.8 | BT18: 0.6903967846 | BU18: 0.6054421769 | BV18: 0.2275312856 | BW18: 0.2 | BX18: 0.1586172175 | BY18: 0.2908163265 | BZ18: 0 | CA18: 0 | CB18: 0.1497410196 | CC18: 0.1020408163 | CE18: Day 15 | DT18: Day 15 | DU18: 2022-10-17 | DV18: 51670 | DW18: 0 | DX18: 0 | DY18: 0 | DZ18: 0 | EA18: 39 | EB18: 2439.58 | EC18: 10 | ED18: 722 | EE18: 2 | EF18: 159 | EG18: 46653.63 | EH18: 51 | EI18: 655 | EJ18: 71.22691603 | EK18: 65.10941176 | EL18: 3110.242 | EM18: 0.06426514418 | EN18: 0 | EO18: 0 | EP18: 0.005480602474 | EQ18: 0.07843137255 | ER18: 0 | ES18: 0 | ET18: 0 | EU18: 0 | EV18: 0.7346849044 | EW18: 0.7647058824 | EX18: 0.6028210452 | EY18: 0.5847328244 | EZ18: 0.2174318944 | FA18: 0.1960784314 | FB18: 0.1423571971 | FC18: 0.2488549618 | FD18: 0.04788320113 | FE18: 0.03921568627 | FF18: 0.2493411552 | FG18: 0.1603053435 | FI18: Day 15 | FJ18: 2022-04-20 | FK18: 54096 | FL18: 0 | FM18: 0 | FN18: 0 | FO18: 0 | FP18: 16 | FQ18: 898.79 | FR18: 7 | FS18: 435 | FT18: 0 | FU18: 0 | FV18: 51033.39 | FW18: 23 | FX18: 796 | FY18: 64.11229899 | FZ18: 57.99086957 | GA18: 3402.226 | GB18: 0.02465598196 | GC18: 0 | GD18: 0 | GE18: 0.004835657596 | GF18: 0.6956521739 | GG18: 0 | GH18: 0 | GI18: 0 | GJ18: 0 | GK18: 0.6738617024 | GL18: 0.6956521739 | GM18: 0.602647404 | GN18: 0.5515075377 | GO18: 0.3261382976 | GP18: 0.3043478261 | GQ18: 0.2028138832 | GR18: 0.2713567839 | GS18: 0 | GT18: 0 | GU18: 0.1897030552 | GV18: 0.1570351759
A19: Day 16 | B19: 2024-05-01 | C19: 39822 | AP19: Day 16 | AQ19: 2023-10-17 | AR19: 48752 | AS19: 0 | AT19: 0 | AU19: 0 | AV19: 0 | AW19: 64 | AX19: 5028.43 | AY19: 22 | AZ19: 3106.56 | BA19: 0 | BB19: 0 | BC19: 48296.33 | BD19: 86 | BE19: 674 | BF19: 71.65627596 | BG19: 94.59290698 | BH19: 3018.520625 | BI19: 0.166864744 | BJ19: 0 | BK19: 0 | BL19: 0.001035275351 | BM19: 0.01162790698 | BN19: 0 | BO19: 0 | BP19: 0 | BQ19: 0 | BR19: 0.6181236855 | BS19: 0.7441860465 | BT19: 0.6782231693 | BU19: 0.6231454006 | BV19: 0.3818763145 | BW19: 0.2558139535 | BX19: 0.1962227772 | BY19: 0.2863501484 | BZ19: 0 | CA19: 0 | CB19: 0.1245187781 | CC19: 0.08902077151 | CE19: Day 16 | DT19: Day 16 | DU19: 2022-10-18 | DV19: 51670 | DW19: 0 | DX19: 0 | DY19: 0 | DZ19: 0 | EA19: 24 | EB19: 1614.9 | EC19: 5 | ED19: 180 | EE19: 3 | EF19: 125 | EG19: 48573.53 | EH19: 32 | EI19: 687 | EJ19: 70.70382824 | EK19: 59.996875 | EL19: 3035.845625 | EM19: 0.03715695762 | EN19: 0 | EO19: 0 | EP19: 0.005263978138 | EQ19: 0.125 | ER19: 0 | ES19: 0 | ET19: 0 | EU19: 0 | EV19: 0.8411375592 | EW19: 0.75 | EX19: 0.6122406586 | EY19: 0.5924308588 | EZ19: 0.09375488307 | FA19: 0.15625 | FB19: 0.1404361594 | FC19: 0.2445414847 | FD19: 0.06510755769 | FE19: 0.09375 | FF19: 0.2420592039 | FG19: 0.1572052402 | FI19: Day 16 | FJ19: 2022-04-21 | FK19: 54096 | FL19: 0 | FM19: 0 | FN19: 0 | FO19: 0 | FP19: 53 | FQ19: 4530.37 | FR19: 13 | FS19: 522.46 | FT19: 0 | FU19: 0 | FV19: 56086.22 | FW19: 66 | FX19: 862 | FY19: 65.06522042 | FZ19: 76.5580303 | GA19: 3505.38875 | GB19: 0.09340487282 | GC19: 0 | GD19: 0 | GE19: 0.004400011268 | GF19: 0.2424242424 | GG19: 0 | GH19: 0 | GI19: 0 | GJ19: 0 | GK19: 0.8966005189 | GL19: 0.803030303 | GM19: 0.6291297577 | GN19: 0.5707656613 | GO19: 0.1033994811 | GP19: 0.196969697 | GQ19: 0.1938576 | GR19: 0.2656612529 | GS19: 0 | GT19: 0 | GU19: 0.1726126311 | GV19: 0.1450116009
A20: Day 17 | B20: 2024-05-02 | C20: 39822 | AP20: Day 17 | AQ20: 2023-10-18 | AR20: 48752 | AS20: 0 | AT20: 0 | AU20: 0 | AV20: 0 | AW20: 25 | AX20: 1275.74 | AY20: 0 | AZ20: 0 | BA20: 0 | BB20: 0 | BC20: 49572.07 | BD20: 25 | BE20: 699 | BF20: 70.91855508 | BG20: 51.0296 | BH20: 2916.004118 | BI20: 0.02616795208 | BJ20: 0 | BK20: 0 | BL20: 0.001008632482 | BM20: 0.04 | BN20: 0 | BO20: 0 | BP20: 0 | BQ20: 0 | BR20: 1 | BS20: 1 | BT20: 0.6865041141 | BU20: 0.6366237482 | BV20: 0 | BW20: 0 | BX20: 0.191172973 | BY20: 0.2761087268 | BZ20: 0 | CA20: 0 | CB20: 0.1213142804 | CC20: 0.08583690987 | CE20: Day 17 | DT20: Day 17 | DU20: 2022-10-19 | DV20: 51670 | DW20: 0 | DX20: 0 | DY20: 0 | DZ20: 0 | EA20: 14 | EB20: 1234.47 | EC20: 4 | ED20: 299.89 | EE20: 0 | EF20: 0 | EG20: 50107.89 | EH20: 18 | EI20: 705 | EJ20: 71.07502128 | EK20: 85.24222222 | EL20: 2947.522941 | EM20: 0.02969537449 | EN20: 0 | EO20: 0 | EP20: 0.005102789201 | EQ20: 0.2222222222 | ER20: 0 | ES20: 0 | ET20: 0 | EU20: 0 | EV20: 0.8045504315 | EW20: 0.7777777778 | EX20: 0.6181294004 | EY20: 0.5971631206 | EZ20: 0.1954495685 | FA20: 0.2222222222 | FB20: 0.1421207319 | FC20: 0.2439716312 | FD20: 0 | FE20: 0 | FF20: 0.2346470785 | FG20: 0.1531914894 | FI20: Day 17
A21: Day 18 | B21: 2024-05-03 | C21: 39822 | AP21: Day 18 | AQ21: 2023-10-19 | AR21: 48752 | CE21: Day 18 | DT21: Day 18 | DU21: 2022-10-20 | DV21: 51670 | DW21: 0 | DX21: 0 | DY21: 0 | DZ21: 0 | EA21: 6 | EB21: 919.69 | EC21: 1 | ED21: 64 | EE21: 1 | EF21: 50 | EG21: 51141.58 | EH21: 8 | EI21: 713 | EJ21: 71.72732118 | EK21: 129.21125 | EL21: 2841.198889 | EM21: 0.02000561254 | EN21: 0 | EO21: 0 | EP21: 0.004999649991 | EQ21: 0.5 | ER21: 0 | ES21: 0 | ET21: 0 | EU21: 0 | EV21: 0.8897154853 | EW21: 0.75 | EX21: 0.6236187853 | EY21: 0.5988779804 | EZ21: 0.06191411352 | FA21: 0.125 | FB21: 0.14049957 | FC21: 0.2426367461 | FD21: 0.04837040118 | FE21: 0.125 | FF21: 0.2308819947 | FG21: 0.1528751753 | FI21: Day 18
A22: Day 19 | B22: 2024-05-04 | C22: 39822 | AP22: Day 19 | AQ22: 2023-10-20 | AR22: 48752 | CE22: Day 19 | DT22: Day 19 | DU22: 2022-10-21 | DV22: 51670 | DW22: 0 | DX22: 0 | DY22: 0 | DZ22: 0 | EA22: 8 | EB22: 370 | EC22: 1 | ED22: 50 | EE22: 0 | EF22: 0 | EG22: 51561.58 | EH22: 9 | EI22: 722 | EJ22: 71.41493075 | EK22: 46.66666667 | EL22: 2713.767368 | EM22: 0.008128507838 | EN22: 0 | EO22: 0 | EP22: 0.004958924843 | EQ22: 0.4444444444 | ER22: 0 | ES22: 0 | ET22: 0 | EU22: 0 | EV22: 0.880952381 | EW22: 0.8888888889 | EX22: 0.6257149218 | EY22: 0.6024930748 | EZ22: 0.119047619 | FA22: 0.1111111111 | FB22: 0.140324831 | FC22: 0.2409972299 | FD22: 0 | FE22: 0 | FF22: 0.2290013223 | FG22: 0.1509695291 | FI22: Day 19
A23: Day 20 | B23: 2024-05-05 | C23: 39822 | AP23: Day 20 | AQ23: 2023-10-21 | AR23: 48752 | CE23: Day 20 | DT23: Day 20 | DU23: 2022-10-22 | DV23: 51670 | DW23: 0 | DX23: 0 | DY23: 0 | DZ23: 0 | EA23: 2 | EB23: 150 | EC23: 0 | ED23: 0 | EE23: 0 | EF23: 0 | EG23: 51711.58 | EH23: 2 | EI23: 724 | EJ23: 71.42483425 | EK23: 75 | EL23: 2585.579 | EM23: 0.002903038514 | EN23: 0 | EO23: 0 | EP23: 0.004944540468 | EQ23: 2 | ER23: 0 | ES23: 0 | ET23: 0 | EU23: 0 | EV23: 1 | EW23: 1 | EX23: 0.6268006122 | EY23: 0.6035911602 | EZ23: 0 | FA23: 0 | FB23: 0.1399177902 | FC23: 0.2403314917 | FD23: 0 | FE23: 0 | FF23: 0.2283370572 | FG23: 0.1505524862 | FI23: Day 20
A24: Day 21 | B24: 2024-05-06 | C24: 39822 | AP24: Day 21 | CE24: Day 21 | DT24: Day 21 | FI24: Day 21
A25: Day 22 | B25: 2024-05-07 | C25: 39822 | AP25: Day 22 | CE25: Day 22 | DT25: Day 22 | FI25: Day 22
A26: Day 23 | B26: 2024-05-08 | C26: 39822 | AP26: Day 23 | CE26: Day 23 | DT26: Day 23 | FI26: Day 23
A27: Day 24 | B27: 2024-05-09 | C27: 39822 | AP27: Day 24 | CE27: Day 24 | DT27: Day 24 | FI27: Day 24
A28: Day 25 | B28: 2024-05-10 | C28: 39822 | AP28: Day 25 | CE28: Day 25 | DT28: Day 25 | FI28: Day 25
A29: Day 26 | B29: 2024-05-11 | C29: 39822 | AP29: Day 26 | CE29: Day 26 | DT29: Day 26 | FI29: Day 26
A30: Day 27 | B30: 2024-05-12 | C30: 39822 | AP30: Day 27 | CE30: Day 27 | DT30: Day 27 | FI30: Day 27
A31: Day 28 | B31: 2024-05-13 | C31: 39822 | AP31: Day 28 | CE31: Day 28 | DT31: Day 28 | FI31: Day 28
A32: Day 29 | B32: 2024-05-14 | C32: 39822 | AP32: Day 29 | CE32: Day 29 | DT32: Day 29 | FI32: Day 29
A33: Day 30 | B33: 2024-05-15 | C33: 39822 | AP33: Day 30 | CE33: Day 30 | DT33: Day 30 | FI33: Day 30
A34: Day 31 | B34: 2024-05-16 | C34: 39822 | AP34: Day 31 | CE34: Day 31 | DT34: Day 31 | FI34: Day 31
A35: Day 32 | B35: 2024-05-17 | C35: 39822 | AP35: Day 32 | CE35: Day 32 | DT35: Day 32 | FI35: Day 32
A36: Day 33 | B36: 2024-05-18 | C36: 39822 | AP36: Day 33 | CE36: Day 33 | DT36: Day 33 | FI36: Day 33
A37: Day 34 | B37: 2024-05-19 | C37: 39822 | AP37: Day 34 | CE37: Day 34 | DT37: Day 34 | FI37: Day 34
A38: Day 35 | B38: 2024-05-20 | C38: 39822 | AP38: Day 35 | CE38: Day 35 | DT38: Day 35 | FI38: Day 35
A39: Day 36 | B39: 2024-05-21 | C39: 39822 | AP39: Day 36 | CE39: Day 36 | DT39: Day 36 | FI39: Day 36
A40: Day 37 | B40: 2024-05-22 | C40: 39822 | AP40: Day 37 | CE40: Day 37 | DT40: Day 37 | FI40: Day 37
A41: Day 38 | B41: 2024-05-23 | C41: 39822 | AP41: Day 38 | CE41: Day 38 | DT41: Day 38 | FI41: Day 38
A42: Day 39 | B42: 2024-05-24 | C42: 39822 | AP42: Day 39 | CE42: Day 39 | DT42: Day 39 | FI42: Day 39
A43: Day 40 | B43: 2024-05-25 | C43: 39822 | AP43: Day 40 | CE43: Day 40 | DT43: Day 40 | FI43: Day 40
A44: Day 41 | B44: 2024-05-26 | C44: 39822 | AP44: Day 41 | CE44: Day 41 | DT44: Day 41 | FI44: Day 41
A45: Day 42 | B45: 2024-05-27 | C45: 39822 | AP45: Day 42 | CE45: Day 42 | DT45: Day 42 | FI45: Day 42
A46: Day 43 | B46: 2024-05-28 | C46: 39822 | AP46: Day 43 | CE46: Day 43 | DT46: Day 43 | FI46: Day 43
C47: 39822 | F47: =SUM(F3:F46) -> 0 | G47: =SUM(G3:G46) -> 0 | H47: 373 | I47: 28708.65 | J47: 116 | K47: 3447.11 | L47: 60 | M47: 7739 | N47: =LARGE(N3:N46,1) -> 39894.76 | AR47: 48752 | AU47: =SUM(AU3:AU46) -> 0 | AV47: =SUM(AV3:AV46) -> 0 | AW47: 445 | AX47: 34031.43 | AY47: 193 | AZ47: 9476.84 | BA47: 60 | BB47: 6013.8 | BC47: =LARGE(BC3:BC46,1) -> 49572.07 | CE47: Day 44 | CG47: 50252 | CJ47: 0 | CK47: 0 | CL47: 449 | CM47: 33466.04 | CN47: 144 | CO47: 5118.36 | CP47: 76 | CQ47: 7068.22 | CR47: 45902.62 | DT47: Day 44 | DV47: 51670 | DY47: 0 | DZ47: 0 | EA47: 437 | EB47: 32412.85 | EC47: 174 | ED47: 7235.37 | EE47: 109 | EF47: 11807.67 | EG47: 51711.58 | FK47: 54096 | FN47: 0 | FO47: 0 | FP47: 487 | FQ47: 38481.82 | FR47: 200 | FS47: 8243.48 | FT47: 139 | FU47: 13563.8 | FV47: 60331.56

Sheet Sanitized Raw Data
A1: donate_id | B1: donate_invoice | C1: donate_amount | D1: donate_method | E1: donate_affiliation | F1: donate_classyear | G1: donate_isthanked | H1: donate_transac_date | I1: donate_create_date | J1: donate_mod_date | K1: donate_num_recurring | L1: donate_pledge
A2: 60223 | B2: EF55-000001 | C2: 50 | D2: Personal Check | E2: 1 | F2: 1956 | G2: N | H2: 2023-10-12 | I2: 2023-10-24T09:02:22 | J2: 2023-10-24T09:02:34 | K2: 1 | L2: None. Donation by check.
A3: 60224 | B3: EF55-000002 | C3: 64 | D3: Personal Check | E3: 1 | F3: 1964 | G3: N | H3: 2023-10-07 | I3: 2023-10-24T09:05:21 | J3: 2023-10-24T09:05:21 | K3: 1 | L3: None. Donation by check.
A4: 60226 | B4: EF55-000003 | C4: 128 | D4: Personal Check | E4: 1 | F4: 1964 | G4: N | H4: 2023-10-11 | I4: 2023-10-24T09:09:38 | J4: 2023-10-24T09:09:38 | K4: 1 | L4: None. Donation by check.
A5: 60227 | B5: EF55-000004 | C5: 20 | D5: Personal Check | E5: 1 | F5: 1968 | G5: N | H5: 2023-10-11 | I5: 2023-10-24T09:11:27 | J5: 2023-10-24T09:11:27 | K5: 1 | L5: None. Donation by check.
A6: 60228 | B6: EF55-000005 | C6: 50 | D6: Personal Check | E6: 1 | F6: 1977 | G6: N | H6: 2023-10-11 | I6: 2023-10-24T09:13:47 | J6: 2023-10-24T09:13:47 | K6: 1 | L6: None. Donation by check.
A7: 60229 | B7: EF55-000006 | C7: 50 | D7: Personal Check | E7: 1 | F7: 1959 | G7: N | H7: 2023-10-13 | I7: 2023-10-24T09:15:37 | J7: 2023-10-24T09:15:37 | K7: 1 | L7: None. Donation by check.
A8: 60230 | B8: EF55-000007 | C8: 500 | D8: Personal Check | E8: 1 | F8: 1968 | G8: N | H8: 2023-10-13 | I8: 2023-10-24T09:17:58 | J8: 2023-10-24T09:17:58 | K8: 1 | L8: None. Donation by check.
A9: 60231 | B9: EF55-000008 | C9: 50 | D9: Personal Check | E9: 1 | F9: 1960 | G9: N | H9: 2023-10-07 | I9: 2023-10-24T09:20:14 | J9: 2023-10-24T09:20:14 | K9: 1 | L9: None. Donation by check.
A10: 60232 | B10: EF55-000009 | C10: 25 | D10: Personal Check | E10: 1 | F10: 1968 | G10: N | H10: 2023-10-12 | I10: 2023-10-24T09:21:53 | J10: 2023-10-24T09:21:53 | K10: 1 | L10: None. Donation by check.
A11: 60233 | B11: EF55-000010 | C11: 50 | D11: Personal Check | E11: 1 | F11: 1957 | G11: N | H11: 2023-10-15 | I11: 2023-10-24T09:23:18 | J11: 2023-10-24T09:23:18 | K11: 1 | L11: None. Donation by check.
A12: 60234 | B12: EF55-000011 | C12: 128 | D12: Personal Check | E12: 1 | F12: 1964 | G12: N | H12: 2023-10-13 | I12: 2023-10-24T09:24:48 | J12: 2023-10-24T09:24:48 | K12: 1 | L12: None. Donation by check.
A13: 60235 | B13: EF55-000012 | C13: 50 | D13: Personal Check | E13: 2 | F13: 2007 | G13: N | H13: 2023-10-20 | I13: 2023-10-24T09:28:33 | J13: 2023-10-24T09:28:33 | K13: 1 | L13: None. Donation by check.
A14: 60236 | B14: EF55-000013 | C14: 100 | D14: Personal Check | E14: 1 | F14: 1978 | G14: N | H14: 2023-10-17 | I14: 2023-10-24T09:29:58 | J14: 2023-10-24T09:29:58 | K14: 1 | L14: None. Donation by check.
A15: 60237 | B15: EF55-000014 | C15: 25 | D15: Personal Check | E15: 1 | F15: 1958 | G15: N | H15: 2023-10-26 | I15: 2023-10-24T09:31:52 | J15: 2023-10-24T09:31:52 | K15: 1 | L15: None. Donation by check.
A16: 60238 | B16: EF55-000015 | C16: 200 | D16: Personal Check | E16: 1 | F16: 1968 | G16: N | H16: 2023-10-17 | I16: 2023-10-24T09:33:17 | J16: 2023-10-24T09:33:17 | K16: 1 | L16: None. Donation by check.
A17: 60239 | B17: EF55-000016 | C17: 25 | D17: Personal Check | E17: 2 | F17: 2016 | G17: N | H17: 2023-10-16 | I17: 2023-10-24T09:35:20 | J17: 2023-10-24T09:35:20 | K17: 1 | L17: None. Donation by check.
A18: 60240 | B18: EF55-000017 | C18: 50 | D18: Personal Check | E18: 1 | F18: 1963 | G18: N | H18: 2023-10-18 | I18: 2023-10-24T09:36:42 | J18: 2023-10-24T09:36:42 | K18: 1 | L18: None. Donation by check.
A19: 60241 | B19: EF55-000018 | C19: 64 | D19: Personal Check | E19: 1 | F19: 1964 | G19: N | H19: 2023-10-12 | I19: 2023-10-24T09:37:48 | J19: 2023-10-24T09:37:48 | K19: 1 | L19: None. Donation by check.
A20: 60242 | B20: EF55-000019 | C20: 300 | D20: Personal Check | E20: 1 | F20: 1964 | G20: N | H20: 2023-10-17 | I20: 2023-10-24T09:39:12 | J20: 2023-10-24T09:39:12 | K20: 1 | L20: None. Donation by check.
A21: 60243 | B21: EF55-000020 | C21: 64 | D21: Personal Check | E21: 1 | F21: 1964 | G21: N | H21: 2023-10-15 | I21: 2023-10-24T09:41:12 | J21: 2023-10-24T09:41:12 | K21: 1 | L21: None. Donation by check.
A22: 60244 | B22: EF55-000021 | C22: 100 | D22: Personal Check | E22: 1 | F22: 1951 | G22: N | H22: 2023-10-12 | I22: 2023-10-24T09:46:25 | J22: 2023-10-24T09:46:25 | K22: 1 | L22: None. Donation by check.
A23: 60245 | B23: EF55-000022 | C23: 25 | D23: PayPal | E23: 1 | F23: 1979 | G23: N | H23: 2023-10-18 | I23: 2023-10-24T23:13:45 | J23: 2023-10-24T23:13:45 | K23: 1 | L23: None. Donation by check.
A24: 60246 | B24: EF55-000023 | C24: 50 | D24: PayPal | E24: 1 | F24: 1964 | G24: N | H24: 2023-10-18 | I24: 2023-10-24T23:14:40 | J24: 2023-10-24T23:14:40 | K24: 1 | L24: None. Donation by check.
A25: 60247 | B25: EF55-000024 | C25: 50 | D25: PayPal | E25: 1 | F25: 1968 | G25: N | H25: 2023-10-18 | I25: 2023-10-24T23:16:09 | J25: 2023-10-24T23:16:09 | K25: 1 | L25: None. Donation by check.
A26: 60248 | B26: EF55-000025 | C26: 5 | D26: PayPal | E26: 1 | F26: 1985 | G26: N | H26: 2023-10-19 | I26: 2023-10-24T23:17:24 | J26: 2023-10-24T23:17:24 | K26: 1 | L26: None. Donation by check.
A27: 60249 | B27: EF55-000026 | C27: 50 | D27: PayPal | E27: 5 | F27: 1951 | G27: N | H27: 2023-10-19 | I27: 2023-10-24T23:18:26 | J27: 2023-10-24T23:18:26 | K27: 1 | L27: None. Donation by check.
A28: 60250 | B28: EF55-000027 | C28: 19 | D28: PayPal | E28: 4 | G28: N | H28: 2023-10-21 | I28: 2023-10-24T23:26:02 | J28: 2023-10-24T23:26:02 | K28: 1 | L28: None. Donation by check.
A29: 60251 | B29: EF55-000028 | C29: 10 | D29: PayPal | E29: 2 | F29: 2016 | G29: N | H29: 2023-10-23 | I29: 2023-10-24T23:27:16 | J29: 2023-10-24T23:27:16 | K29: 1 | L29: None. Donation by check.
A30: 60252 | B30: EF55-000029 | C30: 20.09 | D30: PayPal | E30: 3 | F30: 2009 | G30: N | H30: 2023-10-23 | I30: 2023-10-24T23:28:17 | J30: 2023-10-24T23:28:17 | K30: 1 | L30: None. Donation by check.
A31: 60253 | B31: EF55-000030 | C31: 1 | D31: PayPal | E31: 4 | G31: N | H31: 2023-10-24 | I31: 2023-10-24T23:29:23 | J31: 2023-10-24T23:29:23 | K31: 1 | L31: None. Donation by check.
A32: 60254 | B32: EF55-000031 | C32: 50 | D32: Personal Check | E32: 1 | F32: 1968 | G32: N | H32: 2023-10-18 | I32: 2023-10-25T18:06:25 | J32: 2023-10-25T18:06:25 | K32: 1 | L32: None. Donation by check.
A33: 60255 | B33: EF55-000032 | C33: 25 | D33: Personal Check | E33: 1 | F33: 1975 | G33: N | H33: 2023-10-18 | I33: 2023-10-25T18:07:39 | J33: 2023-10-25T18:10:18 | K33: 1 | L33: None. Donation by check.
A34: 60256 | B34: EF55-000033 | C34: 50 | D34: Personal Check | E34: 1 | F34: 1975 | G34: N | H34: 2023-10-09 | I34: 2023-10-25T18:09:10 | J34: 2023-10-25T18:09:10 | K34: 1 | L34: None. Donation by check.
A35: 60257 | B35: EF55-000034 | C35: 50 | D35: Personal Check | E35: 1 | F35: 1964 | G35: N | H35: 2023-10-20 | I35: 2023-10-25T18:11:20 | J35: 2023-10-25T18:11:20 | K35: 1 | L35: None. Donation by check.
A36: 60258 | B36: EF55-000035 | C36: 1000 | D36: Personal Check | E36: 1 | F36: 1968 | G36: N | H36: 2023-10-23 | I36: 2023-11-09T21:56:43 | J36: 2023-11-09T21:56:43 | K36: 1 | L36: None. Donation by check.
A37: 60259 | B37: EF55-000036 | C37: 200 | D37: Personal Check | E37: 1 | F37: 1970 | G37: N | H37: 2023-10-25 | I37: 2023-11-09T22:02:01 | J37: 2023-11-09T22:02:01 | K37: 1 | L37: None. Donation by check.
A38: 60260 | B38: EF55-000037 | C38: 64 | D38: Personal Check | E38: 1 | F38: 1964 | G38: N | H38: 2023-10-20 | I38: 2023-11-09T22:03:17 | J38: 2023-11-09T22:03:17 | K38: 1 | L38: None. Donation by check.
A39: 60261 | B39: EF55-000038 | C39: 200 | D39: Personal Check | E39: 1 | F39: 1975 | G39: N | H39: 2023-10-17 | I39: 2023-11-09T22:04:35 | J39: 2023-11-09T22:04:35 | K39: 1 | L39: None. Donation by check.
A40: 60262 | B40: EF55-000039 | C40: 50 | D40: Personal Check | E40: 2 | F40: 2007 | G40: N | H40: 2023-11-20 | I40: 2023-11-26T21:33:25 | J40: 2023-11-26T21:33:25 | K40: 1 | L40: None. Donation by check.
A41: 60263 | B41: EF55-000040 | C41: 250 | D41: Personal Check | E41: 1 | F41: 1968 | G41: N | H41: 2023-11-10 | I41: 2023-11-26T21:36:19 | J41: 2023-11-26T21:36:19 | K41: 1 | L41: None. Donation by check.
A42: 60264 | B42: EF55-000041 | C42: 100 | D42: Personal Check | E42: 1 | F42: 1967 | G42: N | H42: 2023-11-21 | I42: 2023-12-11T20:06:28 | J42: 2023-12-11T20:06:28 | K42: 1 | L42: None. Donation by check.
A43: 60265 | B43: EF55-000042 | C43: 100 | D43: Personal Check | E43: 5 | F43: 1949 | G43: N | H43: 2023-11-24 | I43: 2023-12-26T21:22:53 | J43: 2023-12-26T21:22:53 | K43: 1 | L43: None. Donation by check.
A44: 60266 | B44: EF55-000043 | C44: 50 | D44: Personal Check | E44: 2 | F44: 2007 | G44: N | H44: 2023-12-20 | I44: 2024-01-05T00:32:34 | J44: 2024-04-18T11:57:04 | K44: 1 | L44: None. Donation by check.
A45: 60267 | B45: EF55-000044 | C45: 20 | D45: Personal Check | E45: 1 | F45: 1978 | G45: N | H45: 2023-12-21 | I45: 2024-01-05T00:35:46 | J45: 2024-04-18T11:57:27 | K45: 1 | L45: None. Donation by check.
A46: 60274 | B46: EF55-000045 | C46: 1000 | D46: Personal Check | E46: 1 | F46: 1967 | G46: N | H46: 2024-02-15 | I46: 2024-02-28T13:38:06 | J46: 2024-02-28T13:38:06 | K46: 1 | L46: None. Donation by check.
A47: 60275 | B47: EF55-000046 | C47: 100 | D47: Personal Check | E47: 1 | F47: 1968 | G47: N | H47: 2024-02-28 | I47: 2024-03-23T15:14:08 | J47: 2024-03-23T15:14:08 | K47: 1 | L47: None. Donation by check.
A48: 60276 | B48: EF55-000047 | C48: 19.58 | D48: Personal Check | E48: 1 | F48: 1958 | G48: N | H48: 2024-03-15 | I48: 2024-03-23T15:16:06 | J48: 2024-03-23T15:16:06 | K48: 1 | L48: None. Donation by check.
A49: 60277 | B49: EF55-000048 | C49: 10 | D49: PayPal | E49: 1 | F49: 2007 | G49: N | H49: 2023-10-27 | I49: 2024-04-11T20:10:05 | J49: 2024-04-11T20:10:05 | K49: 1 | L49: None. Donation by check.
A50: 60278 | B50: EF55-000049 | C50: 10 | D50: PayPal | E50: 1 | F50: 1986 | G50: N | H50: 2023-10-29 | I50: 2024-04-11T20:11:26 | J50: 2024-04-11T20:11:26 | K50: 1 | L50: None. Donation by check.
A51: 60279 | B51: EF55-000050 | C51: 24 | D51: PayPal | E51: 6 | F51: 1978 | G51: N | H51: 2023-11-01 | I51: 2024-04-11T20:13:47 | J51: 2024-04-11T20:13:47 | K51: 1 | L51: None. Donation by check.
A52: 60280 | B52: EF55-000051 | C52: 5 | D52: PayPal | E52: 1 | F52: 1956 | G52: N | H52: 2023-11-03 | I52: 2024-04-11T20:14:47 | J52: 2024-04-11T20:14:47 | K52: 1 | L52: None. Donation by check.
A53: 60281 | B53: EF55-000052 | C53: 58 | D53: PayPal | E53: 1 | F53: 1958 | G53: N | H53: 2023-11-04 | I53: 2024-04-11T20:15:58 | J53: 2024-04-11T20:15:58 | K53: 1 | L53: None. Donation by check.
A54: 60282 | B54: EF55-000053 | C54: 5 | D54: PayPal | E54: 1 | F54: 1978 | G54: N | H54: 2023-11-06 | I54: 2024-04-11T20:16:46 | J54: 2024-04-11T20:16:46 | K54: 1 | L54: None. Donation by check.
A55: 60283 | B55: EF55-000054 | C55: 25 | D55: PayPal | E55: 1 | F55: 1980 | G55: N | H55: 2023-11-06 | I55: 2024-04-11T20:18:50 | J55: 2024-04-11T20:18:50 | K55: 1 | L55: None. Donation by check.
A56: 60284 | B56: EF55-000055 | C56: 5 | D56: PayPal | E56: 1 | F56: 1956 | G56: N | H56: 2023-11-09 | I56: 2024-04-11T20:20:01 | J56: 2024-04-11T20:20:01 | K56: 1 | L56: None. Donation by check.
A57: 60285 | B57: EF55-000056 | C57: 10 | D57: PayPal | E57: 1 | F57: 1981 | G57: N | H57: 2023-11-11 | I57: 2024-04-11T20:21:03 | J57: 2024-04-11T20:21:03 | K57: 1 | L57: None. Donation by check.
A58: 60286 | B58: EF55-000057 | C58: 25 | D58: PayPal | E58: 1 | F58: 2005 | G58: N | H58: 2023-11-14 | I58: 2024-04-11T20:21:58 | J58: 2024-04-11T20:21:58 | K58: 1 | L58: None. Donation by check.
A59: 60287 | B59: EF55-000058 | C59: 10 | D59: PayPal | E59: 1 | F59: 1987 | G59: N | H59: 2023-11-14 | I59: 2024-04-11T20:22:57 | J59: 2024-04-11T20:22:57 | K59: 1 | L59: None. Donation by check.
A60: 60288 | B60: EF55-000059 | C60: 5 | D60: PayPal | E60: 1 | F60: 1985 | G60: N | H60: 2023-11-19 | I60: 2024-04-11T20:23:51 | J60: 2024-04-11T20:23:51 | K60: 1 | L60: None. Donation by check.
A61: 60289 | B61: EF55-000060 | C61: 1 | D61: PayPal | E61: 4 | G61: N | H61: 2023-11-21 | I61: 2024-04-11T20:26:06 | J61: 2024-04-11T20:26:06 | K61: 1 | L61: None. Donation by check.
A62: 60290 | B62: EF55-000061 | C62: 20.09 | D62: PayPal | E62: 3 | F62: 2009 | G62: N | H62: 2023-11-23 | I62: 2024-04-11T20:27:20 | J62: 2024-04-11T20:27:20 | K62: 1 | L62: None. Donation by check.
A63: 60291 | B63: EF55-000062 | C63: 10 | D63: PayPal | E63: 1 | F63: 2007 | G63: N | H63: 2023-11-27 | I63: 2024-04-11T20:28:16 | J63: 2024-04-11T20:28:16 | K63: 1 | L63: None. Donation by check.
A64: 60292 | B64: EF55-000063 | C64: 10 | D64: PayPal | E64: 1 | F64: 1986 | G64: N | H64: 2023-11-29 | I64: 2024-04-11T20:29:38 | J64: 2024-04-11T20:29:38 | K64: 1 | L64: None. Donation by check.
A65: 60293 | B65: EF55-000064 | C65: 24 | D65: PayPal | E65: 6 | F65: 1978 | G65: N | H65: 2023-12-02 | I65: 2024-04-11T20:32:23 | J65: 2024-04-11T20:32:23 | K65: 1 | L65: None. Donation by check.
A66: 60294 | B66: EF55-000065 | C66: 5 | D66: PayPal | E66: 1 | F66: 1956 | G66: N | H66: 2023-12-03 | I66: 2024-04-11T20:33:24 | J66: 2024-04-11T20:33:24 | K66: 1 | L66: None. Donation by check.
A67: 60295 | B67: EF55-000066 | C67: 58 | D67: PayPal | E67: 1 | F67: 1958 | G67: N | H67: 2023-12-04 | I67: 2024-04-11T20:34:20 | J67: 2024-04-11T20:34:20 | K67: 1 | L67: None. Donation by check.
A68: 60296 | B68: EF55-000067 | C68: 5 | D68: PayPal | E68: 1 | F68: 1978 | G68: N | H68: 2023-12-06 | I68: 2024-04-11T20:37:31 | J68: 2024-04-11T20:37:31 | K68: 1 | L68: None. Donation by check.
A69: 60297 | B69: EF55-000068 | C69: 5 | D69: PayPal | E69: 1 | F69: 1956 | G69: N | H69: 2023-12-09 | I69: 2024-04-11T20:38:29 | J69: 2024-04-11T20:38:29 | K69: 1 | L69: None. Donation by check.
A70: 60298 | B70: EF55-000069 | C70: 10 | D70: PayPal | E70: 1 | F70: 1981 | G70: N | H70: 2023-12-11 | I70: 2024-04-11T20:39:30 | J70: 2024-04-11T20:39:30 | K70: 1 | L70: None. Donation by check.
A71: 60299 | B71: EF55-000070 | C71: 25 | D71: PayPal | E71: 1 | F71: 2005 | G71: N | H71: 2023-12-14 | I71: 2024-04-11T20:40:22 | J71: 2024-04-11T20:40:22 | K71: 1 | L71: None. Donation by check.
A72: 60300 | B72: EF55-000071 | C72: 10 | D72: PayPal | E72: 1 | F72: 1987 | G72: N | H72: 2023-12-14 | I72: 2024-04-11T20:43:51 | J72: 2024-04-11T20:43:51 | K72: 1 | L72: None. Donation by check.
A73: 60301 | B73: EF55-000072 | C73: 5 | D73: PayPal | E73: 1 | F73: 1985 | G73: N | H73: 2023-12-19 | I73: 2024-04-11T20:44:43 | J73: 2024-04-11T20:44:43 | K73: 1 | L73: None. Donation by check.
A74: 60302 | B74: EF55-000073 | C74: 2 | D74: PayPal | E74: 4 | G74: N | H74: 2023-12-22 | I74: 2024-04-11T20:45:24 | J74: 2024-04-11T20:45:24 | K74: 1 | L74: None. Donation by check.
A75: 60303 | B75: EF55-000074 | C75: 20.09 | D75: PayPal | E75: 3 | F75: 2009 | G75: N | H75: 2023-12-23 | I75: 2024-04-11T20:46:25 | J75: 2024-04-11T20:46:25 | K75: 1 | L75: None. Donation by check.
A76: 60304 | B76: EF55-000075 | C76: 10 | D76: PayPal | E76: 1 | F76: 2007 | G76: N | H76: 2023-12-23 | I76: 2024-04-11T20:47:20 | J76: 2024-04-11T20:47:20 | K76: 1 | L76: None. Donation by check.
A77: 60305 | B77: EF55-000076 | C77: 10 | D77: PayPal | E77: 1 | F77: 1986 | G77: N | H77: 2023-12-29 | I77: 2024-04-11T20:48:05 | J77: 2024-04-11T20:48:05 | K77: 1 | L77: None. Donation by check.
A78: 60306 | B78: EF55-000077 | C78: 5 | D78: PayPal | E78: 1 | F78: 1956 | G78: N | H78: 2024-01-03 | I78: 2024-04-11T20:48:54 | J78: 2024-04-11T20:48:54 | K78: 1 | L78: None. Donation by check.
A79: 60307 | B79: EF55-000078 | C79: 58 | D79: PayPal | E79: 1 | F79: 1958 | G79: N | H79: 2024-01-04 | I79: 2024-04-11T20:49:47 | J79: 2024-04-11T20:49:47 | K79: 1 | L79: None. Donation by check.
A80: 60308 | B80: EF55-000079 | C80: 5 | D80: PayPal | E80: 1 | F80: 1978 | G80: N | H80: 2024-01-06 | I80: 2024-04-11T20:58:11 | J80: 2024-04-11T20:58:11 | K80: 1 | L80: None. Donation by check.
A81: 60309 | B81: EF55-000080 | C81: 5 | D81: PayPal | E81: 1 | F81: 1956 | G81: N | H81: 2024-01-09 | I81: 2024-04-11T20:58:59 | J81: 2024-04-11T20:58:59 | K81: 1 | L81: None. Donation by check.
A82: 60310 | B82: EF55-000081 | C82: 10 | D82: PayPal | E82: 1 | F82: 1981 | G82: N | H82: 2024-01-11 | I82: 2024-04-11T20:59:57 | J82: 2024-04-11T20:59:57 | K82: 1 | L82: None. Donation by check.
A83: 60311 | B83: EF55-000082 | C83: 25 | D83: PayPal | E83: 1 | F83: 2005 | G83: N | H83: 2024-01-14 | I83: 2024-04-11T21:00:48 | J83: 2024-04-11T21:00:48 | K83: 1 | L83: None. Donation by check.
A84: 60312 | B84: EF55-000083 | C84: 10 | D84: PayPal | E84: 1 | F84: 1987 | G84: N | H84: 2024-01-14 | I84: 2024-04-11T21:01:50 | J84: 2024-04-11T21:01:50 | K84: 1 | L84: None. Donation by check.
A85: 60313 | B85: EF55-000084 | C85: 5 | D85: PayPal | E85: 1 | F85: 1985 | G85: N | H85: 2024-01-19 | I85: 2024-04-11T21:02:58 | J85: 2024-04-11T21:02:58 | K85: 1 | L85: None. Donation by check.
A86: 60314 | B86: EF55-000085 | C86: 20.09 | D86: PayPal | E86: 3 | F86: 2009 | G86: N | H86: 2024-01-23 | I86: 2024-04-11T21:03:48 | J86: 2024-04-11T21:03:48 | K86: 1 | L86: None. Donation by check.
A87: 60315 | B87: EF55-000086 | C87: 24 | D87: PayPal | E87: 6 | F87: 1978 | G87: N | H87: 2024-01-27 | I87: 2024-04-11T21:05:20 | J87: 2024-04-11T21:05:20 | K87: 1 | L87: None. Donation by check.
A88: 60316 | B88: EF55-000087 | C88: 10 | D88: PayPal | E88: 1 | F88: 2007 | G88: N | H88: 2024-01-27 | I88: 2024-04-11T21:06:14 | J88: 2024-04-11T21:06:14 | K88: 1 | L88: None. Donation by check.
A89: 60317 | B89: EF55-000088 | C89: 10 | D89: PayPal | E89: 1 | F89: 1986 | G89: N | H89: 2024-01-29 | I89: 2024-04-11T21:08:14 | J89: 2024-04-11T21:08:14 | K89: 1 | L89: None. Donation by check.
A90: 60318 | B90: EF55-000089 | C90: 5 | D90: PayPal | E90: 1 | F90: 1956 | G90: N | H90: 2024-02-03 | I90: 2024-04-11T21:10:48 | J90: 2024-04-11T21:10:48 | K90: 1 | L90: None. Donation by check.
A91: 60319 | B91: EF55-000090 | C91: 58 | D91: PayPal | E91: 1 | F91: 1958 | G91: N | H91: 2024-02-04 | I91: 2024-04-11T21:11:41 | J91: 2024-04-11T21:11:41 | K91: 1 | L91: None. Donation by check.
A92: 60320 | B92: EF55-000091 | C92: 5 | D92: PayPal | E92: 1 | F92: 1978 | G92: N | H92: 2024-02-06 | I92: 2024-04-11T21:12:37 | J92: 2024-04-11T21:12:37 | K92: 1 | L92: None. Donation by check.
A93: 60321 | B93: EF55-000092 | C93: 5 | D93: PayPal | E93: 1 | F93: 1956 | G93: N | H93: 2024-02-09 | I93: 2024-04-11T21:13:28 | J93: 2024-04-11T21:13:28 | K93: 1 | L93: None. Donation by check.
A94: 60322 | B94: EF55-000093 | C94: 10 | D94: PayPal | E94: 1 | F94: 1981 | G94: N | H94: 2024-02-11 | I94: 2024-04-11T21:14:39 | J94: 2024-04-11T21:14:39 | K94: 1 | L94: None. Donation by check.
A95: 60323 | B95: EF55-000094 | C95: 10 | D95: PayPal | E95: 1 | F95: 1987 | G95: N | H95: 2024-02-14 | I95: 2024-04-11T21:15:30 | J95: 2024-04-11T21:15:30 | K95: 1 | L95: None. Donation by check.
A96: 60324 | B96: EF55-000095 | C96: 5 | D96: Personal Check | E96: 1 | F96: 1985 | G96: N | H96: 2024-02-19 | I96: 2024-04-11T21:16:20 | J96: 2024-04-11T21:16:20 | K96: 1 | L96: None. Donation by check.
A97: 60325 | B97: EF55-000096 | C97: 20.09 | D97: PayPal | E97: 3 | F97: 2009 | G97: N | H97: 2024-02-23 | I97: 2024-04-11T21:17:14 | J97: 2024-04-11T21:17:14 | K97: 1 | L97: None. Donation by check.
A98: 60326 | B98: EF55-000097 | C98: 1 | D98: PayPal | E98: 4 | G98: N | H98: 2024-02-23 | I98: 2024-04-11T21:18:01 | J98: 2024-04-11T21:18:01 | K98: 1 | L98: None. Donation by check.
A99: 60327 | B99: EF55-000098 | C99: 24 | D99: PayPal | E99: 6 | F99: 1978 | G99: N | H99: 2024-02-27 | I99: 2024-04-11T21:19:39 | J99: 2024-04-11T21:19:39 | K99: 1 | L99: None. Donation by check.
A100: 60328 | B100: EF55-000099 | C100: 10 | D100: PayPal | E100: 1 | F100: 2007 | G100: N | H100: 2024-02-27 | I100: 2024-04-11T21:20:34 | J100: 2024-04-11T21:20:34 | K100: 1 | L100: None. Donation by check.
A101: 60329 | B101: EF55-000100 | C101: 10 | D101: PayPal | E101: 1 | F101: 1986 | G101: N | H101: 2024-02-29 | I101: 2024-04-11T21:21:23 | J101: 2024-04-11T21:21:23 | K101: 1 | L101: None. Donation by check.
A102: 60330 | B102: EF55-000101 | C102: 5 | D102: PayPal | E102: 1 | F102: 1956 | G102: N | H102: 2024-03-03 | I102: 2024-04-11T21:27:10 | J102: 2024-04-11T21:27:10 | K102: 1 | L102: None. Donation by check.
A103: 60331 | B103: EF55-000102 | C103: 58 | D103: PayPal | E103: 1 | F103: 1958 | G103: N | H103: 2024-03-04 | I103: 2024-04-11T21:28:11 | J103: 2024-04-11T21:28:11 | K103: 1 | L103: None. Donation by check.
A104: 60332 | B104: EF55-000103 | C104: 5 | D104: PayPal | E104: 1 | F104: 1978 | G104: N | H104: 2024-03-06 | I104: 2024-04-11T21:29:17 | J104: 2024-04-11T21:29:17 | K104: 1 | L104: None. Donation by check.
A105: 60333 | B105: EF55-000104 | C105: 5 | D105: PayPal | E105: 1 | F105: 1956 | G105: N | H105: 2024-03-09 | I105: 2024-04-11T21:32:14 | J105: 2024-04-11T21:32:14 | K105: 1 | L105: None. Donation by check.
A106: 60334 | B106: EF55-000105 | C106: 10 | D106: PayPal | E106: 1 | F106: 1981 | G106: N | H106: 2024-03-11 | I106: 2024-04-11T21:33:10 | J106: 2024-04-11T21:33:10 | K106: 1 | L106: None. Donation by check.
A107: 60335 | B107: EF55-000106 | C107: 10 | D107: PayPal | E107: 1 | F107: 1987 | G107: N | H107: 2024-03-14 | I107: 2024-04-11T21:34:07 | J107: 2024-04-11T21:34:07 | K107: 1 | L107: None. Donation by check.
A108: 60336 | B108: EF55-000107 | C108: 5 | D108: PayPal | E108: 1 | F108: 1985 | G108: N | H108: 2024-03-19 | I108: 2024-04-11T21:35:10 | J108: 2024-04-11T21:35:10 | K108: 1 | L108: None. Donation by check.
A109: 60337 | B109: EF55-000108 | C109: 1 | D109: PayPal | E109: 4 | G109: N | H109: 2024-03-22 | I109: 2024-04-11T21:36:52 | J109: 2024-04-11T21:36:52 | K109: 1 | L109: None. Donation by check.
A110: 60338 | B110: EF55-000109 | C110: 20.09 | D110: PayPal | E110: 3 | F110: 2009 | G110: N | H110: 2024-03-23 | I110: 2024-04-11T21:37:43 | J110: 2024-04-11T21:37:43 | K110: 1 | L110: None. Donation by check.
A111: 60339 | B111: EF55-000110 | C111: 10 | D111: PayPal | E111: 1 | F111: 2007 | G111: N | H111: 2024-03-27 | I111: 2024-04-11T21:38:31 | J111: 2024-04-11T21:38:31 | K111: 1 | L111: None. Donation by check.
A112: 60340 | B112: EF55-000111 | C112: 10 | D112: PayPal | E112: 1 | F112: 1986 | G112: N | H112: 2024-03-29 | I112: 2024-04-11T21:39:26 | J112: 2024-04-11T21:39:26 | K112: 1 | L112: None. Donation by check.
A113: 60341 | B113: EF55-000112 | C113: 5 | D113: PayPal | E113: 1 | F113: 1956 | G113: N | H113: 2024-04-03 | I113: 2024-04-11T21:40:47 | J113: 2024-04-11T21:40:47 | K113: 1 | L113: None. Donation by check.
A114: 60342 | B114: EF55-000113 | C114: 58 | D114: PayPal | E114: 1 | F114: 1958 | G114: N | H114: 2024-04-04 | I114: 2024-04-11T21:41:40 | J114: 2024-04-11T21:41:40 | K114: 1 | L114: None. Donation by check.
A115: 60343 | B115: EF55-000114 | C115: 5 | D115: PayPal | E115: 1 | F115: 1978 | G115: N | H115: 2024-04-06 | I115: 2024-04-11T21:42:26 | J115: 2024-04-11T21:42:26 | K115: 1 | L115: None. Donation by check.
A116: 60344 | B116: EF55-000115 | C116: 5 | D116: PayPal | E116: 1 | F116: 1956 | G116: N | H116: 2024-04-09 | I116: 2024-04-11T21:43:13 | J116: 2024-04-11T21:43:13 | K116: 1 | L116: None. Donation by check.
A117: 60345 | B117: EF55-000116 | C117: 10 | D117: PayPal | E117: 1 | F117: 1981 | G117: N | H117: 2024-04-11 | I117: 2024-04-11T21:44:32 | J117: 2024-04-11T21:44:32 | K117: 1 | L117: None. Donation by check.
A118: 60346 | B118: F55-000003 | C118: 19.77 | D118: CC | E118: 1 | F118: 1977 | G118: N | H118: 2024-04-16T08:42:46 | I118: 2024-04-16T08:42:48 | J118: 2024-04-16T08:42:48 | K118: 1 | L118: 19.77
A119: 60347 | B119: F55-000004 | C119: 19.79 | D119: CC | E119: 1 | F119: 1979 | G119: N | H119: 2024-04-16T08:43:54 | I119: 2024-04-16T08:43:56 | J119: 2024-04-16T08:43:56 | K119: 1 | L119: 19.79
A120: 60348 | B120: F55-000005 | C120: 19.77 | D120: CC | E120: 1 | F120: 1977 | G120: N | H120: 2024-04-16T08:43:57 | I120: 2024-04-16T08:43:58 | J120: 2024-04-16T08:43:58 | K120: 1 | L120: 19.77
A121: 60349 | B121: F55-000006 | C121: 19.79 | D121: CC | E121: 1 | F121: 1979 | G121: N | H121: 2024-04-16T08:45:16 | I121: 2024-04-16T08:45:18 | J121: 2024-04-16T08:45:18 | K121: 1 | L121: 19.79
A122: 60350 | B122: F55-000007 | C122: 50 | D122: CC | E122: 1 | F122: 1989 | G122: N | H122: 2024-04-16T08:45:55 | I122: 2024-04-16T08:45:57 | J122: 2024-04-16T08:45:57 | K122: 1 | L122: 50
A123: 60351 | B123: F55-000008 | C123: 79 | D123: CC | E123: 1 | F123: 1979 | G123: N | H123: 2024-04-16T08:47:01 | I123: 2024-04-16T08:47:02 | J123: 2024-04-16T08:47:02 | K123: 1 | L123: 79
A124: 60352 | B124: F55-000009 | C124: 19.79 | D124: CC | E124: 1 | F124: 1979 | G124: N | H124: 2024-04-16T08:49:12 | I124: 2024-04-16T08:49:13 | J124: 2024-04-16T08:49:13 | K124: 1 | L124: 19.79
A125: 60353 | B125: F55-000010 | C125: 10 | D125: CC | E125: 1 | F125: 1965 | G125: N | H125: 2024-04-16T08:50:28 | I125: 2024-04-16T08:50:30 | J125: 2024-04-16T08:50:30 | K125: 1 | L125: 10
A126: 60354 | B126: F55-000011 | C126: 79 | D126: CC | E126: 1 | F126: 1979 | G126: N | H126: 2024-04-16T08:51:30 | I126: 2024-04-16T08:51:31 | J126: 2024-04-16T08:51:31 | K126: 1 | L126: 79
A127: 60355 | B127: F55-000012 | C127: 19.79 | D127: CC | E127: 1 | F127: 1979 | G127: N | H127: 2024-04-16T08:52:03 | I127: 2024-04-16T08:52:04 | J127: 2024-04-16T08:52:04 | K127: 1 | L127: 19.79
A128: 60356 | B128: F55-000013 | C128: 19.79 | D128: CC | E128: 1 | F128: 1979 | G128: N | H128: 2024-04-16T08:52:56 | I128: 2024-04-16T08:52:58 | J128: 2024-04-16T08:52:58 | K128: 1 | L128: 19.79
A129: 60357 | B129: F55-000014 | C129: 100 | D129: CC | E129: 1 | F129: 1971 | G129: N | H129: 2024-04-16T08:53:03 | I129: 2024-04-16T08:53:05 | J129: 2024-04-16T08:53:05 | K129: 1 | L129: 100
A130: 60358 | B130: F55-000015 | C130: 100 | D130: CC | E130: 1 | F130: 1975 | G130: N | H130: 2024-04-16T08:54:41 | I130: 2024-04-16T08:54:43 | J130: 2024-04-16T08:54:43 | K130: 1 | L130: 100
A131: 60359 | B131: F55-000016 | C131: 50 | D131: CC | E131: 1 | F131: 1977 | G131: N | H131: 2024-04-16T08:55:09 | I131: 2024-04-16T08:55:10 | J131: 2024-04-16T08:55:10 | K131: 1 | L131: 50
A132: 60360 | B132: F55-000017 | C132: 100 | D132: CC | E132: 1 | F132: 1975 | G132: N | H132: 2024-04-16T08:55:37 | I132: 2024-04-16T08:55:39 | J132: 2024-04-16T08:55:39 | K132: 1 | L132: 100
A133: 60361 | B133: F55-000018 | C133: 250 | D133: CC | E133: 1 | F133: 1955 | G133: N | H133: 2024-04-16T08:57:08 | I133: 2024-04-16T08:57:09 | J133: 2024-04-16T08:57:09 | K133: 1 | L133: 250
A134: 60362 | B134: F55-000019 | C134: 79 | D134: CC | E134: 1 | F134: 1979 | G134: N | H134: 2024-04-16T09:01:28 | I134: 2024-04-16T09:01:30 | J134: 2024-04-16T09:01:30 | K134: 1 | L134: 79
A135: 60363 | B135: F55-000020 | C135: 25 | D135: CC | F135: 1959 | G135: N | H135: 2024-04-16T09:02:17 | I135: 2024-04-16T09:02:19 | J135: 2024-04-16T09:02:19 | K135: 1 | L135: 25
A136: 60364 | B136: F55-000021 | C136: 19.79 | D136: CC | E136: 1 | F136: 1979 | G136: N | H136: 2024-04-16T09:06:00 | I136: 2024-04-16T09:06:01 | J136: 2024-04-16T09:06:01 | K136: 1 | L136: 19.79
A137: 60365 | B137: F55-000022 | C137: 64 | D137: CC | E137: 1 | F137: 1964 | G137: N | H137: 2024-04-16T09:08:29 | I137: 2024-04-16T09:08:31 | J137: 2024-04-16T09:08:31 | K137: 1 | L137: 64
A138: 60366 | B138: F55-000023 | C138: 19.63 | D138: Personal Check | E138: 1 | F138: 1963 | G138: N | H138: 2024-04-16 | I138: 2024-04-16T09:09:39 | J138: 2024-04-21T23:17:46 | K138: 1 | L138: None. Donation by check.
A139: 60367 | B139: F55-000024 | C139: 25 | D139: CC | E139: 1 | F139: 1981 | G139: N | H139: 2024-04-16T09:09:45 | I139: 2024-04-16T09:09:47 | J139: 2024-04-16T09:09:47 | K139: 1 | L139: 25
A140: 60368 | B140: F55-000025 | C140: 197.7 | D140: CC | E140: 1 | F140: 1977 | G140: N | H140: 2024-04-16T09:10:29 | I140: 2024-04-16T09:10:31 | J140: 2024-04-16T09:10:31 | K140: 1 | L140: 197.7
A141: 60369 | B141: F55-000026 | C141: 50 | D141: CC | E141: 2 | F141: 2016 | G141: N | H141: 2024-04-16T09:11:00 | I141: 2024-04-16T09:11:02 | J141: 2024-04-16T09:11:02 | K141: 1 | L141: 50
A142: 60370 | B142: F55-000027 | C142: 79 | D142: CC | E142: 1 | F142: 1979 | G142: N | H142: 2024-04-16T09:12:25 | I142: 2024-04-16T09:12:27 | J142: 2024-04-16T09:12:27 | K142: 1 | L142: 79
A143: 60371 | B143: F55-000028 | C143: 10 | D143: Personal Check | E143: 2 | F143: 2013 | G143: N | H143: 2024-04-16 | I143: 2024-04-16T09:12:46 | J143: 2024-04-21T23:15:45 | K143: 1 | L143: None. Donation by check.
A144: 60372 | B144: F55-000029 | C144: 25 | D144: CC | E144: 1 | F144: 1966 | G144: N | H144: 2024-04-16T09:13:20 | I144: 2024-04-16T09:13:21 | J144: 2024-04-16T09:13:21 | K144: 1 | L144: 25
A145: 60373 | B145: F55-000030 | C145: 64 | D145: CC | E145: 1 | F145: 1964 | G145: N | H145: 2024-04-16T09:15:37 | I145: 2024-04-16T09:15:38 | J145: 2024-04-16T09:15:38 | K145: 1 | L145: 64
A146: 60374 | B146: F55-000031 | C146: 25 | D146: CC | E146: 1 | F146: 1958 | G146: N | H146: 2024-04-16T09:16:26 | I146: 2024-04-16T09:16:28 | J146: 2024-04-16T09:16:28 | K146: 1 | L146: 25
A147: 60375 | B147: F55-000032 | C147: 19.89 | D147: CC | E147: 1 | F147: 1989 | G147: N | H147: 2024-04-16T09:16:56 | I147: 2024-04-16T09:16:58 | J147: 2024-04-16T09:16:58 | K147: 1 | L147: 19.89
A148: 60376 | B148: F55-000033 | C148: 25 | D148: CC | E148: 1 | F148: 1978 | G148: N | H148: 2024-04-16T09:18:52 | I148: 2024-04-16T09:18:53 | J148: 2024-04-16T09:18:53 | K148: 1 | L148: 25
A149: 60377 | B149: F55-000034 | C149: 50 | D149: CC | E149: 1 | F149: 1963 | G149: N | H149: 2024-04-16T09:22:37 | I149: 2024-04-16T09:22:38 | J149: 2024-04-16T09:22:38 | K149: 1 | L149: 50
A150: 60378 | B150: F55-000035 | C150: 50 | D150: CC | E150: 1 | F150: 1957 | G150: N | H150: 2024-04-16T09:29:15 | I150: 2024-04-16T09:29:17 | J150: 2024-04-16T09:29:17 | K150: 1 | L150: 50
A151: 60379 | B151: F55-000036 | C151: 1000 | D151: CC | E151: 1 | F151: 1964 | G151: N | H151: 2024-04-16T09:32:20 | I151: 2024-04-16T09:32:21 | J151: 2024-04-16T09:32:21 | K151: 1 | L151: 1000
A152: 60380 | B152: F55-000037 | C152: 5 | D152: CC | E152: 1 | F152: 1980 | G152: N | H152: 2024-04-16T09:34:09 | I152: 2024-04-16T09:34:11 | J152: 2024-04-16T09:34:11 | K152: 1 | L152: 5
A153: 60381 | B153: F55-000038 | C153: 19.89 | D153: CC | E153: 1 | F153: 1989 | G153: N | H153: 2024-04-16T09:35:47 | I153: 2024-04-16T09:35:49 | J153: 2024-04-16T09:35:49 | K153: 1 | L153: 19.89
A154: 60382 | B154: F55-000039 | C154: 100 | D154: CC | E154: 1 | F154: 1972 | G154: N | H154: 2024-04-16T09:39:31 | I154: 2024-04-16T09:39:33 | J154: 2024-04-16T09:39:33 | K154: 1 | L154: 100
A155: 60383 | B155: F55-000040 | C155: 19.77 | D155: CC | E155: 1 | F155: 1977 | G155: N | H155: 2024-04-16T09:42:27 | I155: 2024-04-16T09:42:28 | J155: 2024-04-16T09:42:28 | K155: 1 | L155: 19.77
A156: 60384 | B156: F55-000041 | C156: 50 | D156: CC | E156: 1 | F156: 1980 | G156: N | H156: 2024-04-16T09:43:30 | I156: 2024-04-16T09:43:31 | J156: 2024-04-16T09:43:31 | K156: 1 | L156: 50
A157: 60385 | B157: F55-000042 | C157: 100 | D157: CC | E157: 1 | F157: 1988 | G157: N | H157: 2024-04-16T09:45:34 | I157: 2024-04-16T09:45:36 | J157: 2024-04-16T09:45:36 | K157: 1 | L157: 100
A158: 60386 | B158: F55-000043 | C158: 50 | D158: CC | E158: 1 | F158: 1968 | G158: N | H158: 2024-04-16T09:46:47 | I158: 2024-04-16T09:46:48 | J158: 2024-04-16T09:46:48 | K158: 1 | L158: 50
A159: 60387 | B159: F55-000044 | C159: 200 | D159: CC | E159: 1 | F159: 1963 | G159: N | H159: 2024-04-16T09:48:01 | I159: 2024-04-16T09:48:02 | J159: 2024-04-16T09:48:02 | K159: 1 | L159: 200
A160: 60388 | B160: F55-000045 | C160: 25 | D160: CC | E160: 1 | F160: 1964 | G160: N | H160: 2024-04-16T09:48:09 | I160: 2024-04-16T09:48:10 | J160: 2024-04-16T09:48:10 | K160: 1 | L160: 25
A161: 60389 | B161: F55-000046 | C161: 25 | D161: CC | E161: 1 | F161: 1965 | G161: N | H161: 2024-04-16T09:50:31 | I161: 2024-04-16T09:50:33 | J161: 2024-04-16T09:50:33 | K161: 1 | L161: 25
A162: 60390 | B162: F55-000047 | C162: 100 | D162: CC | E162: 1 | F162: 1964 | G162: N | H162: 2024-04-16T09:50:40 | I162: 2024-04-16T09:50:42 | J162: 2024-04-16T09:50:42 | K162: 1 | L162: 100
A163: 60391 | B163: F55-000048 | C163: 25 | D163: CC | E163: 1 | F163: 1979 | G163: N | H163: 2024-04-16T09:53:58 | I163: 2024-04-16T09:54:00 | J163: 2024-04-16T09:54:00 | K163: 1 | L163: 25
A164: 60392 | B164: F55-000049 | C164: 25 | D164: CC | E164: 1 | F164: 1977 | G164: N | H164: 2024-04-16T09:55:28 | I164: 2024-04-16T09:55:29 | J164: 2024-04-16T09:55:29 | K164: 1 | L164: 25
A165: 60393 | B165: F55-000050 | C165: 50 | D165: CC | E165: 1 | F165: 1959 | G165: N | H165: 2024-04-16T09:56:01 | I165: 2024-04-16T09:56:03 | J165: 2024-04-16T09:56:03 | K165: 1 | L165: 50
A166: 60394 | B166: F55-000051 | C166: 19.63 | D166: CC | E166: 5 | F166: 1963 | G166: N | H166: 2024-04-16T10:04:33 | I166: 2024-04-16T10:04:35 | J166: 2024-04-16T10:04:35 | K166: 1 | L166: 19.63
A167: 60395 | B167: F55-000052 | C167: 19.63 | D167: CC | E167: 5 | F167: 1963 | G167: N | H167: 2024-04-16T10:05:02 | I167: 2024-04-16T10:05:03 | J167: 2024-04-16T10:05:03 | K167: 1 | L167: 19.63
A168: 60396 | B168: F55-000053 | C168: 50 | D168: CC | E168: 1 | F168: 1960 | G168: N | H168: 2024-04-16T10:06:36 | I168: 2024-04-16T10:06:38 | J168: 2024-04-16T10:06:38 | K168: 1 | L168: 50
A169: 60397 | B169: F55-000054 | C169: 19.63 | D169: CC | E169: 1 | F169: 1963 | G169: N | H169: 2024-04-16T10:11:45 | I169: 2024-04-16T10:11:46 | J169: 2024-04-16T10:11:46 | K169: 1 | L169: 19.63
A170: 60398 | B170: F55-000055 | C170: 50 | D170: CC | E170: 1 | F170: 1975 | G170: N | H170: 2024-04-16T10:13:03 | I170: 2024-04-16T10:13:05 | J170: 2024-04-16T10:13:05 | K170: 1 | L170: 50
A171: 60399 | B171: F55-000056 | C171: 25 | D171: CC | E171: 1 | F171: 1964 | G171: N | H171: 2024-04-16T10:16:47 | I171: 2024-04-16T10:16:48 | J171: 2024-04-16T10:16:48 | K171: 1 | L171: 25
A172: 60400 | B172: F55-000057 | C172: 25 | D172: CC | E172: 1 | F172: 1968 | G172: N | H172: 2024-04-16T10:20:16 | I172: 2024-04-16T10:20:18 | J172: 2024-04-16T10:20:18 | K172: 1 | L172: 25
A173: 60401 | B173: F55-000058 | C173: 25 | D173: CC | E173: 1 | F173: 1969 | G173: N | H173: 2024-04-16T10:24:37 | I173: 2024-04-16T10:24:38 | J173: 2024-04-16T10:24:38 | K173: 1 | L173: 25
A174: 60402 | B174: F55-000059 | C174: 50 | D174: CC | E174: 1 | F174: 1963 | G174: N | H174: 2024-04-16T10:27:11 | I174: 2024-04-16T10:27:13 | J174: 2024-04-16T10:27:13 | K174: 1 | L174: 50
A175: 60403 | B175: F55-000060 | C175: 25 | D175: CC | E175: 1 | F175: 1963 | G175: N | H175: 2024-04-16T10:27:24 | I175: 2024-04-16T10:27:26 | J175: 2024-04-16T10:27:26 | K175: 1 | L175: 25
A176: 60404 | B176: F55-000061 | C176: 19.63 | D176: CC | E176: 1 | F176: 1963 | G176: N | H176: 2024-04-16T10:27:29 | I176: 2024-04-16T10:27:30 | J176: 2024-04-16T10:27:30 | K176: 1 | L176: 19.63
A177: 60405 | B177: F55-000062 | C177: 64 | D177: CC | E177: 1 | F177: 1964 | G177: N | H177: 2024-04-16T10:28:42 | I177: 2024-04-16T10:28:44 | J177: 2024-04-16T10:28:44 | K177: 1 | L177: 64
A178: 60406 | B178: F55-000063 | C178: 25 | D178: CC | E178: 2 | F178: 2015 | G178: N | H178: 2024-04-16T10:33:09 | I178: 2024-04-16T10:33:10 | J178: 2024-04-16T10:33:10 | K178: 1 | L178: 25
A179: 60407 | B179: F55-000064 | C179: 200 | D179: CC | E179: 1 | F179: 1964 | G179: N | H179: 2024-04-16T10:33:10 | I179: 2024-04-16T10:33:12 | J179: 2024-04-16T10:33:12 | K179: 1 | L179: 200
A180: 60408 | B180: F55-000065 | C180: 75 | D180: CC | E180: 2 | F180: 2013 | G180: N | H180: 2024-04-16T10:37:15 | I180: 2024-04-16T10:37:16 | J180: 2024-04-16T10:37:16 | K180: 1 | L180: 75
A181: 60409 | B181: F55-000066 | C181: 50 | D181: CC | E181: 1 | F181: 1959 | G181: N | H181: 2024-04-16T10:37:31 | I181: 2024-04-16T10:37:32 | J181: 2024-04-16T10:37:32 | K181: 1 | L181: 50
A182: 60410 | B182: F55-000067 | C182: 50 | D182: CC | E182: 1 | F182: 1975 | G182: N | H182: 2024-04-16T10:38:27 | I182: 2024-04-16T10:38:29 | J182: 2024-04-16T10:38:29 | K182: 1 | L182: 50
A183: 60411 | B183: F55-000068 | C183: 100 | D183: CC | E183: 1 | F183: 1964 | G183: N | H183: 2024-04-16T10:41:04 | I183: 2024-04-16T10:41:06 | J183: 2024-04-16T10:41:06 | K183: 1 | L183: 100
A184: 60412 | B184: F55-000069 | C184: 75 | D184: CC | E184: 1 | F184: 1966 | G184: N | H184: 2024-04-16T10:44:08 | I184: 2024-04-16T10:44:10 | J184: 2024-04-16T10:44:10 | K184: 1 | L184: 75
A185: 60413 | B185: F55-000070 | C185: 19.79 | D185: CC | E185: 1 | F185: 1979 | G185: N | H185: 2024-04-16T10:46:00 | I185: 2024-04-16T10:46:02 | J185: 2024-04-16T10:46:02 | K185: 1 | L185: 19.79
A186: 60414 | B186: F55-000071 | C186: 250 | D186: CC | E186: 1 | F186: 1977 | G186: N | H186: 2024-04-16T10:47:22 | I186: 2024-04-16T10:47:23 | J186: 2024-04-16T10:47:23 | K186: 1 | L186: 250
A187: 60415 | B187: F55-000072 | C187: 50 | D187: CC | E187: 1 | F187: 1966 | G187: N | H187: 2024-04-16T10:51:21 | I187: 2024-04-16T10:51:23 | J187: 2024-04-16T10:51:23 | K187: 1 | L187: 50
A188: 60416 | B188: F55-000073 | C188: 50 | D188: CC | F188: 1966 | G188: N | H188: 2024-04-16T10:52:06 | I188: 2024-04-16T10:52:08 | J188: 2024-04-16T10:52:08 | K188: 1 | L188: 50
A189: 60417 | B189: F55-000074 | C189: 100 | D189: CC | E189: 1 | F189: 1999 | G189: N | H189: 2024-04-16T10:55:59 | I189: 2024-04-16T10:56:01 | J189: 2024-04-16T10:56:01 | K189: 1 | L189: 100
A190: 60418 | B190: F55-000075 | C190: 100 | D190: CC | E190: 1 | F190: 1966 | G190: N | H190: 2024-04-16T10:57:42 | I190: 2024-04-16T10:57:44 | J190: 2024-04-16T10:57:44 | K190: 1 | L190: 100
A191: 60419 | B191: F55-000076 | C191: 50 | D191: CC | E191: 1 | F191: 1958 | G191: N | H191: 2024-04-16T10:58:38 | I191: 2024-04-16T10:58:39 | J191: 2024-04-16T10:58:39 | K191: 1 | L191: 50
A192: 60420 | B192: F55-000077 | C192: 100 | D192: CC | E192: 1 | F192: 1975 | G192: N | H192: 2024-04-16T11:02:50 | I192: 2024-04-16T11:02:52 | J192: 2024-04-16T11:02:52 | K192: 1 | L192: 100
A193: 60421 | B193: F55-000078 | C193: 100 | D193: CC | E193: 1 | F193: 1964 | G193: N | H193: 2024-04-16T11:03:13 | I193: 2024-04-16T11:03:15 | J193: 2024-04-16T11:03:15 | K193: 1 | L193: 100
A194: 60422 | B194: F55-000079 | C194: 57 | D194: CC | E194: 1 | F194: 1957 | G194: N | H194: 2024-04-16T11:06:45 | I194: 2024-04-16T11:06:46 | J194: 2024-04-16T11:06:46 | K194: 1 | L194: 57
A195: 60423 | B195: F55-000080 | C195: 75 | D195: CC | E195: 1 | F195: 1951 | G195: N | H195: 2024-04-16T11:11:32 | I195: 2024-04-16T11:11:33 | J195: 2024-04-16T11:11:33 | K195: 1 | L195: 75
A196: 60424 | B196: F55-000081 | C196: 100 | D196: CC | E196: 1 | F196: 1968 | G196: N | H196: 2024-04-16T11:12:29 | I196: 2024-04-16T11:12:31 | J196: 2024-04-16T11:12:31 | K196: 1 | L196: 100
A197: 60425 | B197: F55-000082 | C197: 50 | D197: CC | E197: 1 | F197: 1978 | G197: N | H197: 2024-04-16T11:13:57 | I197: 2024-04-16T11:13:58 | J197: 2024-04-16T11:13:58 | K197: 1 | L197: 50
A198: 60426 | B198: F55-000083 | C198: 25 | D198: CC | E198: 1 | F198: 1966 | G198: N | H198: 2024-04-16T11:16:22 | I198: 2024-04-16T11:16:23 | J198: 2024-04-16T11:16:23 | K198: 1 | L198: 25
A199: 60427 | B199: F55-000084 | C199: 25 | D199: CC | E199: 1 | F199: 1989 | G199: N | H199: 2024-04-16T11:19:32 | I199: 2024-04-16T11:19:33 | J199: 2024-04-16T11:19:33 | K199: 1 | L199: 25
A200: 60428 | B200: F55-000085 | C200: 64 | D200: CC | E200: 5 | F200: 1964 | G200: N | H200: 2024-04-16T11:21:48 | I200: 2024-04-16T11:21:50 | J200: 2024-04-16T11:21:50 | K200: 1 | L200: 64
... 350 more rows

Sheet Sheet11 (hidden)
A1: 1
A2: 2
A3: 3
A4: 4
A5: 5
A6: 6
A7: 7
A8: 8
A9: 9
A10: 10
A11: 11
A12: 12
A13: 13
A14: 14
A15: 15
A16: 16
A17: 17
A18: 18
A19: 19
A20: 20
A21: 21
A22: 22
A23: 23
A24: 24
A25: 25
A26: 26
A27: 27
A28: 28
A29: 29
A30: 30
A31: 31
A32: 32
A33: 33
A34: 34
A35: 35
A36: 36
A37: 37
A38: 38
A39: 39
A40: 40
A41: 41
A42: 42
A43: 43
A44: 44
A45: 45
A46: 46
A47: 47
A48: 48
A49: 49
A50: 50
A51: 51
A52: 52
A53: 53
A54: 54
A55: 55
A56: 56
A57: 57
A58: 58
A59: 59
A60: 60
A61: 61
A62: 62
